Cogmind - Beta 15 @@@ ROGUE MODE // 2025.06.02 @ 21:30:04 Player: deadnoob Result: Destroyed by G-73 Enforcer with Phase Gun Performance ------------- Evolutions (8) 4000 Regions Visited (32) 6400 Robots Destroyed (422) 2110 Value Destroyed (21943) 21943 Prototype IDs (64) 1280 Alien Tech Used (2) 400 Bonus (10166) 10166 TOTAL SCORE: 46299 Bonus ------- High Alert Combat Kills 2412 Follower Combat Kills 2026 Entered Garrisons 1600 Used RIF Installer 5000 Aligned with FarCom 300 Friendly Fire -1172 Cogmind --------- Core Integrity 0/1450 Matter 295/300 Energy 530/530 System Corruption 37% Temperature Danger (496) Movement Walking (190) Ox1 Location -2/Quarantine Parts ------- > --- POWER (3) -------- Quantum Reactor Light Quantum Reactor Light Quantum Reactor > --- PROPULSION (6) --- Myomer Leg Myomer Leg Myomer Leg Myomer Leg Centrium Leg > --- UTILITY (11) ----- Medium Storage Unit Advanced Signal Interpreter Improved Targeting Computer Phase Armor Graphene Brace Advanced Hacking Suite System Shield Relay Coupler [NC] (45) > --- WEAPON (3) ------- Firepult > --- INVENTORY (10) --- Light Quantum Reactor Subatomic Replicator Peak State ------------ > --- POWER ------------ Light Antimatter Reactor Light Antimatter Reactor Light Quantum Reactor > --- PROPULSION ------- Medium Treads Myomer Leg Centrium Leg Myomer Exoskeleton > --- UTILITY ---------- Advanced Cooling System Advanced Coolant Injector Advanced Signal Interpreter Improved Targeting Computer SHELL Armor Graphene Brace Improved Hardlight Generator Advanced Hacking Suite Relay Coupler [NC] > --- WEAPON ----------- Quantum Rifle Enhanced Quantum Rifle Nanosword > --- INVENTORY -------- Quantum Reactor Huge Storage Unit Firepult Improved Remote Datajack [Rating: 180] Favorites ----------- Power Antimatter Reactor Engine Cooled Ion Engine Power Core Micro Nuclear Core Reactor Antimatter Reactor Propulsion Light Treads Treads Light Treads Leg Flexi-carbon Leg Wheel Wheel Hover Unit Antigrav System Flight Unit Field Propulsion Drive Utility Huge Storage Unit Device Advanced Heat Sink Storage Huge Storage Unit Processor Targeting Computer Hackware Relay Coupler [NC] Protection Improved Medium Armor Plating Artifact Phase Armor Weapon Improved Light Cannon Energy Gun Plasma Rifle Energy Cannon Heavy Plasma Cannon Ballistic Gun Light Assault Rifle Ballistic Cannon Improved Light Cannon Launcher Heavy Rocket Launcher Special Weapon Improved Remote Datajack Impact Weapon Great Maul Slashing Weapon Nanosword Special Melee Weapon Datajack Build | -11 -10 -10 -9 -9 -9 -8 -8 -8 -8 -8 -7 -7 -6 -6 -6 -6 -5 -5 -5 -5 -5 -5 -5 -5 -4 -4 -4 -3 -3 -3 -2 -2 ------- Run | Yrd Mat Min Mat Min Exi Min Mat Gar Mat Gar Fac Gar Fac Gar Fac Gar Fac Was Fac Gar Fac Upp Upp War Pro Fac Gar Res Tes Gar Res Qua Slots Evolved 16 | . . . 2 . . . 2 . . . 2 . 2 . . . 2 . . . . . . . . 2 . 2 . . 2 . Power 2 | . . . . . . . . . . . . . 1 . . . . . . . . . . . . . . . . . 1 . Propulsion 4 | . . . 1 . . . . . . . 1 . . . . . . . . . . . . . . 2 . . . . . . Utility 9 | . . . 1 . . . 1 . . . 1 . 1 . . . 2 . . . . . . . . . . 2 . . 1 . Weapon 1 | . . . . . . . 1 . . . . . . . . . . . . . . . . . . . . . . . . . Parts Attached 328 | 1 4 4 18 7 . 1 1 6 13 2 9 8 9 12 28 10 5 13 4 8 5 3 1 . 3 28 38 18 30 11 11 17 Power 41 | . . 1 1 1 . . . . 1 . 1 . 3 2 5 . . 3 . 1 1 1 . . . 2 3 1 5 2 2 5 Engine 4 | . . 1 . 1 . . . . . . . . . 2 . . . . . . . . . . . . . . . . . . Core 16 | . . . 1 . . . . . 1 . 1 . 2 . 5 . . . . . 1 . . . . 1 2 1 1 . . . Reactor 21 | . . . . . . . . . . . . . 1 . . . . 3 . 1 . 1 . . . 1 1 . 4 2 2 5 Propulsion 99 | . 2 . 6 1 . . . 2 6 1 1 3 1 2 9 3 3 5 . . 1 1 . . . 9 13 6 13 4 2 5 Treads 50 | . 2 . 6 1 . . . 2 6 1 1 3 . 2 4 . 2 5 . . 1 1 . . . 3 6 . 1 2 1 . Leg 29 | . . . . . . . . . . . . . 1 . . 3 1 . . . . . . . . 1 5 5 5 2 1 5 Wheel 14 | . . . . . . . . . . . . . . . 5 . . . . . . . . . . 3 . . 6 . . . Hover 4 | . . . . . . . . . . . . . . . . . . . . . . . . . . 2 2 . . . . . Flight 2 | . . . . . . . . . . . . . . . . . . . . . . . . . . . . 1 1 . . . Utility 117 | . 2 1 3 3 . . 1 3 3 . 4 4 3 5 10 5 1 2 3 4 3 1 . . 2 12 14 7 7 5 5 4 Device 50 | . . . 1 1 . . 1 1 2 . 1 2 3 2 2 1 1 . 1 2 1 1 . . 1 9 4 4 2 3 3 1 Storage 7 | . 1 . . . . . . . . . 1 . . . . . . . . . . . . . . . . 1 1 . 2 1 Processor 14 | . 1 . . 1 . . . . 1 . 1 . . . . . . . . . . . . . . 3 4 1 2 . . . Hackware 17 | . . . . . . . . . . . 1 1 . 1 2 3 . . 2 . 1 . . . . . 2 1 . 2 . 1 Protection 28 | . . 1 2 1 . . . 2 . . . 1 . 2 6 1 . 2 . 2 1 . . . 1 . 4 . 2 . . . Artifact 1 | . . . . . . . . . . . . . . . . . . . . . . . . . . . . . . . . 1 Weapon 71 | 1 . 2 8 2 . 1 . 1 3 1 3 1 2 3 4 2 1 3 1 3 . . 1 . 1 5 8 4 5 . 2 3 Energy Gun 16 | . . . 3 . . . . . . . . . . . . . . . . . . . 1 . 1 2 4 . 2 . 2 1 Energy Cannon 12 | . . . 1 . . . . . . . . 1 2 1 2 . . . . . . . . . . 1 . 2 2 . . . Ballistic Gun 19 | 1 . 1 2 . . . . . 1 1 . . . 1 2 2 . 2 . 1 . . . . . 2 2 1 . . . . Ballistic Cannon 10 | . . . 2 . . 1 . . 2 . 1 . . 1 . . 1 . . . . . . . . . 1 . . . . 1 Launcher 6 | . . 1 . . . . . 1 . . 1 . . . . . . . 1 1 . . . . . . . 1 . . . . Special Weapon 4 | . . . . . . . . . . . 1 . . . . . . 1 . 1 . . . . . . 1 . . . . . Impact Weapon 2 | . . . . 1 . . . . . . . . . . . . . . . . . . . . . . . . . . . 1 Slashing Weapon 1 | . . . . . . . . . . . . . . . . . . . . . . . . . . . . . 1 . . . Piercing Weapon . | . . . . . . . . . . . . . . . . . . . . . . . . . . . . . . . . . Special Melee Weapon 1 | . . . . 1 . . . . . . . . . . . . . . . . . . . . . . . . . . . . Unidentified Prototypes 13 | . . . . . . . . . 1 . 1 . . . . . . . . . . . . . . 2 . 2 5 . . 2 Corrupted Parts 2 | . . . . . . . . . . . . . . . . . . . . . . . . . . . 2 . . . . . System Corruption 10 | . . . . . . . . . . . . . . . . . . . . . . . . . . . 10 . . . . . Parts Lost 165 | . . 2 6 3 . . . 2 1 . . 4 2 10 21 5 7 . . . 5 3 . . 2 9 32 14 17 2 12 6 Power 24 | . . 1 1 1 . . . . 1 . . . . 1 5 . 1 . . . . 1 . . . 2 3 . 2 1 3 1 Propulsion 60 | . . . 1 1 . . . 2 . . . 2 2 2 9 1 3 . . . 1 1 . . . 3 12 6 10 . 4 . Utility 43 | . . 1 2 1 . . . . . . . 1 . 4 3 2 1 . . . 1 1 . . 1 3 9 5 3 1 2 2 Weapon 38 | . . . 2 . . . . . . . . 1 . 3 4 2 2 . . . 3 . . . 1 1 8 3 2 . 3 3 Highest Loss Streak 17 | . . 1 2 2 . . . 1 1 . . 2 1 3 4 2 4 . . . 4 2 . . 1 7 17 12 6 1 11 3 To Critical Strikes 2 | . . . . . . . . . . . . . . . . . . . . . . . . . . 1 1 . . . . . Average Backups 19 | 6 14 18 23 24 22 23 21 21 22 22 22 22 22 22 22 19 16 18 17 20 20 18 17 15 14 19 18 19 5 3 4 2 Power . | 1 1 . . . . . . . . . 1 1 . . 1 . . . 1 1 1 . . . . 1 1 2 . . . . Propulsion 2 | 4 8 10 7 6 6 6 6 4 4 3 2 1 . . . . . 1 2 1 1 . . . . . . 1 . . . . Utility 8 | . 1 1 2 2 3 5 4 7 9 10 12 13 15 14 14 13 10 10 8 11 13 13 15 12 11 13 11 9 1 1 2 . Weapon 6 | 1 3 5 12 12 12 11 10 9 8 7 6 5 5 5 4 4 4 5 4 5 4 2 2 3 2 3 4 4 2 1 1 1 Tool/Special . | . . . . . . . . . . . . . . . . . . . . . . . . . . . . . . . . . Unused Backups 77 | 5 3 1 12 . 2 . . 2 8 5 1 . 2 4 2 . . . . 2 . . 5 . . 3 3 13 2 . 1 1 Power 8 | 1 . 1 . . . . . . . . . . . . . . . . . . . . . . . 1 2 3 . . . . Propulsion 16 | 2 2 . 8 . . . . . 2 . . . . . . . . . . . . . . . . . . 2 . . . . Utility 38 | 1 1 . . . . . . 1 3 4 1 . 2 4 2 . . . . 1 . . 5 . . 2 1 7 2 . 1 . Weapon 14 | 1 . . 4 . 2 . . 1 3 1 . . . . . . . . . 1 . . . . . . . 1 . . . . Tool/Special 1 | . . . . . . . . . . . . . . . . . . . . . . . . . . . . . . . . 1 Average Slot Usage (%) 87 | . 99 99 99 99 100 100 99 91 90 81 83 97 99 97 87 91 90 72 70 70 80 78 87 88 87 87 82 90 70 70 69 47 Engine 3 | . 14 13 6 5 11 11 9 9 8 . . . . 4 3 . . . . . . . . . . . . . . . . . Core 3 | . . . 4 5 . . . . . 9 7 7 11 1 6 13 7 1 . . 3 4 . . . . 4 4 . . . . Reactor 3 | . . . . . . . . . . . . . 1 6 1 . . 7 11 11 6 5 11 11 11 9 3 2 5 8 9 5 Treads 18 | . 25 28 32 32 33 33 27 27 26 27 30 30 23 23 10 3 8 10 11 10 11 11 11 11 11 13 7 . 1 3 2 . Leg 2 | . 2 . . . . . . . . . . . 2 1 . 13 7 . . . . . . . . . 7 25 3 8 9 6 Device 9 | . . . 10 6 . . 8 9 8 9 8 13 13 10 6 5 18 9 5 5 16 21 23 23 24 18 7 14 5 8 12 4 Storage 7 | . 14 14 11 11 11 11 9 9 9 9 7 7 6 6 6 6 5 5 5 5 5 5 5 5 5 5 4 3 2 . 1 2 Processor 5 | . 13 9 . 3 11 11 9 1 6 . 2 7 6 6 3 . . . . . . . . . . 7 17 15 17 10 8 8 Hackware 5 | . . . . . . . . . . . 3 . 6 8 13 16 11 11 11 11 11 11 11 11 9 5 9 8 9 12 10 10 Protection 6 | . . 4 11 11 11 11 9 8 9 9 7 7 5 6 5 6 5 4 5 4 4 5 5 5 5 4 1 . 1 4 3 2 Energy Gun 1 | . . . 5 . . . . . . . . . . . . . . . . . . . . 5 6 8 4 . . 3 4 . Energy Cannon 1 | . . . 1 . . . . . . . . . 5 9 10 5 1 3 4 1 3 . . . . 2 . 2 3 . . . Ballistic Gun 6 | . 28 27 2 . . . 9 8 3 . . 13 6 2 6 13 11 7 11 14 7 5 4 . 3 2 5 3 . . . . Ballistic Cannon 5 | . . . 12 22 . 20 18 14 15 16 12 5 6 5 . . 3 . . . . . . . . . . . . . . 2 Peak Build Rating 180 | 6 8 10 20 20 21 21 26 34 43 43 51 56 67 76 60 71 69 104 105 116 104 107 108 101 110 115 114 131 127 173 180 161 Average Rating 63 | 6 7 8 16 18 18 20 25 31 40 41 49 54 63 63 55 58 60 90 104 106 101 97 106 101 101 107 78 111 93 160 153 104 On Entrance 59 | 6 6 8 9 20 18 21 21 26 34 41 42 50 52 67 58 54 57 47 104 105 104 95 107 101 101 102 97 80 34 124 138 26 Naked Turns . | . . . . . . . . . . . . . . . . . . . . . . . . . . . . . . . . . Heaviest Build 186 | 10 85 93 97 100 96 99 107 125 125 127 130 127 133 145 146 131 126 176 181 186 168 152 152 150 152 156 128 138 67 69 145 118 Greatest Support 166 | 20 40 40 60 60 60 60 60 60 84 62 80 80 80 90 60 45 10 140 140 140 140 130 120 120 120 166 93 147 100 125 155 130 Greatest Overweight (x) 38 | . 2 2 1 1 1 1 1 2 2 2 2 1 2 2 13 13 38 5 1 1 1 1 1 1 1 9 38 2 5 . 1 3 Average Overweight (x) 1 | . 1 2 1 1 1 1 1 1 1 1 1 1 1 1 5 11 17 1 . . . 1 1 1 1 2 2 . 1 . . 1 Largest Inventory Capacity 25 | 8 25 25 25 25 25 25 25 25 25 25 25 25 25 25 25 25 25 25 25 25 25 25 25 25 25 25 25 25 8 5 25 10 Average Capacity 23 | 8 23 25 25 25 25 25 25 25 25 25 25 25 25 25 25 25 25 25 25 25 25 25 25 25 25 25 22 23 7 5 10 7 Most Carried 25 | 6 17 19 25 25 25 25 24 25 25 25 25 25 25 25 25 24 20 25 25 25 25 23 22 17 19 25 25 25 8 5 11 10 Average Carried 20 | 6 15 18 23 24 23 25 23 23 24 24 24 24 24 24 23 20 17 23 23 24 24 20 19 17 17 22 20 21 6 4 5 4 Final Capacity 25 | 8 25 25 25 25 25 25 25 25 25 25 25 25 25 25 25 25 25 25 25 25 25 25 25 25 25 25 25 5 5 5 5 10 Final Carried 25 | 6 17 18 25 22 25 25 24 24 24 25 25 24 25 25 20 19 18 25 24 25 21 19 17 17 19 21 23 5 5 5 5 2 Class Distribution -------------------- 28% | Mutant 21% | Botlord-Tank 15% | Bothacker-Tank 12% | Tank 7% | Scavenger-Mutant 5% | Botlord-Gunner 3% | Botlord-Mutant Dominant Class ---------------- Mutant | -10/Materials Mutant | -10/Mines Mutant | -9/Materials Mutant | -9/Mines Mutant | -9/Exiles Mutant | -8/Mines Tank | -8/Materials Tank | -8/Garrison Tank | -8/Materials Tank | -8/Garrison Bothacker-Tank | -7/Factory Bothacker-Tank | -7/Garrison Bothacker-Tank | -6/Factory Bothacker-Tank | -6/Garrison Botlord-Tank | -6/Factory Botlord-Tank | -6/Garrison Botlord-Tank | -5/Factory Botlord-Tank | -5/Waste Botlord-Tank | -5/Factory Botlord-Tank | -5/Garrison Botlord-Tank | -5/Factory Botlord-Mutant | -5/Upper Caves Botlord-Tank | -5/Upper Caves Botlord-Tank | -5/Warlord Botlord-Tank | -4/Proximity Caves Bothacker-Tank | -4/Factory Botlord-Gunner | -4/Garrison Botlord-Gunner | -3/Research Mutant | -3/Testing Scavenger-Mutant | -3/Garrison Scavenger-Mutant | -2/Research Mutant | -2/Quarantine Resources | -11 -10 -10 -9 -9 -9 -8 -8 -8 -8 -8 -7 -7 -6 -6 -6 -6 -5 -5 -5 -5 -5 -5 -5 -5 -4 -4 -4 -3 -3 -3 -2 -2 ----------- Run | Yrd Mat Min Mat Min Exi Min Mat Gar Mat Gar Fac Gar Fac Gar Fac Gar Fac Was Fac Gar Fac Upp Upp War Pro Fac Gar Res Tes Gar Res Qua Matter Collected 14928 | 234 66 94 667 94 . 74 . 924 727 876 358 887 492 855 981 483 363 520 . 876 559 217 159 . 249 584 1274 354 738 486 222 515 Remotely 858 | . . . . . . . . . . . . . . . . . . . . . . . . . . 379 479 . . . . . Salvage Created 19272 | 159 140 145 1151 135 . 87 . 622 818 571 230 896 372 1178 1691 732 202 1742 . 1052 575 163 . . 296 1093 1136 196 1206 944 435 1305 Parts 833 | 15 11 10 76 5 . 5 . 34 39 32 9 45 25 48 81 30 10 26 . 38 26 9 . . 12 51 40 12 70 21 26 27 Haulers Intercepted 7 | . . . 2 . . . . . 2 . 1 . . . 1 . . . . . . . . . . 1 . . . . . . Recyclers Shooed 14 | . . 1 . . . . . . 1 . 1 . . . 1 . . . . . 2 . . . . 4 . 1 . . . 3 Parts Field Recycled . | . . . . . . . . . . . . . . . . . . . . . . . . . . . . . . . . . Retrieved Matter . | . . . . . . . . . . . . . . . . . . . . . . . . . . . . . . . . . Parts Self-Destructed 17 | . . . . . . . . . . . . . . . . . . . . . . 8 . . 9 . . . . . . . Prevented 6 | . . . . . . . . . . . . . . . . . . . . . . . 2 . 4 . . . . . . . Kills | -11 -10 -10 -9 -9 -9 -8 -8 -8 -8 -8 -7 -7 -6 -6 -6 -6 -5 -5 -5 -5 -5 -5 -5 -5 -4 -4 -4 -3 -3 -3 -2 -2 ------- Run | Yrd Mat Min Mat Min Exi Min Mat Gar Mat Gar Fac Gar Fac Gar Fac Gar Fac Was Fac Gar Fac Upp Upp War Pro Fac Gar Res Tes Gar Res Qua Combat Hostiles Destroyed 349 | . 5 3 32 3 . . . 22 17 23 2 27 10 26 27 16 4 6 . 17 14 7 . . 11 12 17 4 14 10 6 14 Melee 10 | . . . . . . . . . . 1 . . . . . . . . . . . . . . . . . . 5 3 1 . Guns 110 | . 5 1 11 . . . . 5 . 1 . 10 2 9 7 6 2 . . 13 3 5 . . 1 8 10 2 . 4 5 . Cannons 109 | . . . 10 3 . . . 9 14 13 1 6 3 15 10 6 1 2 . 1 1 . . . . 2 1 1 6 . . 4 AOE 93 | . . 2 10 . . . . 8 3 7 1 11 4 1 10 1 . . . 2 10 2 . . 9 1 4 1 1 1 . 4 Classes Destroyed 23 | 2 2 . 6 2 . . . 2 1 . . . 1 3 2 . . 1 . . . . . . . . . . 1 . . . Worker 16 | . . . 3 . . 1 . . 2 . 1 . 1 . 3 . . . . . 2 . . . . . . . 2 . . 1 Builder 13 | . . . . . . . . . 3 . . . 1 . 2 . . . . . . . . . . 2 . . 3 . 1 1 Tunneler 8 | 4 . 1 1 1 . . . . . . . . . . . . . . . . . . . . . 1 . . . . . . Hauler 7 | . . . 2 . . . . . 2 . 1 . . . 1 . . . . . . . . . . 1 . . . . . . Recycler 19 | 1 . 1 1 1 . 1 . . 2 . 2 . . . 4 . . . . . . . . . . 2 . . 1 . . 3 Operator 2 | . . . 1 . . . . . . . . . . . . . . . . . . . . . . . . 1 . . . . Watcher 6 | . . . 3 . . . . . 1 . . 1 . . 1 . . . . . . . . . . . . . . . . . Swarmer 75 | . 3 2 10 . . . . 4 3 7 . 10 4 . 5 6 . . . . 3 5 . . 9 3 . . . 1 . . Cutter 2 | . . . . . . . . . . . . . . 2 . . . . . . . . . . . . . . . . . . Saboteur 3 | . . . . . . . . . . . . . . . 2 . . . . . 1 . . . . . . . . . . . Grunt 114 | . 2 1 13 . . . . 10 7 9 . 4 3 12 5 6 . . . 10 5 1 . . 1 3 3 . 4 6 . 9 Brawler 3 | . . . . . . . . . . . . . . 1 . . . . . . 1 . . . . . 1 . . . . . Duelist 9 | . . . 1 . . . . 1 . 1 . . . 1 1 1 . . . . . . . . . . 2 . . 1 . . Protector 1 | . . . . . . . . . . . . . . . 1 . . . . . . . . . . . . . . . . . Researcher 1 | . . . . . . . . . . . . . . . . . . . . . . . . . . . . . 1 . . . Sentry 54 | . . . 8 . . . . 3 7 1 1 10 . 3 4 1 2 . . 3 2 1 . . . 1 6 . . . 1 . Demolisher 2 | . . . . 2 . . . . . . . . . . . . . . . . . . . . . . . . . . . . Specialist 7 | . . . . . . . . 2 . . . . . 3 2 . . . . . . . . . . . . . . . . . Hunter 13 | . . . . . . . . . . . . . 2 . 5 . 2 . . . . . . . . 2 1 . . 1 . . Programmer 51 | . . . . . . . . 2 . 5 1 3 1 3 2 2 . . . 2 2 . . . . 3 3 2 10 . 5 5 Behemoth 6 | . . . . . . . . . . . . . . 1 . . . . . 2 . . . . 1 . 1 . . 1 . . Compactor 6 | . . . . . . . . . . . . . . . . . . 6 . . . . . . . . . . . . . . Assembled 1 | . . . . 1 . . . . . . . . . . . . . . . . . . . . . . . . . . . . Wasp 1 | . . . . . . . . . . . . . . . . . . 1 . . . . . . . . . . . . . . Martyr 1 | . . . . . . . . . . . . . . . . . . 1 . . . . . . . . . . . . . . Infiltrator 2 | . . . . . . . . . . . . . . . . . . . . . . . . . . . . 2 . . . . Best Kill Streak 11 | 3 2 2 4 2 . 2 . 11 4 4 2 9 4 7 10 10 2 1 . 6 6 4 . . 5 3 5 5 8 3 4 6 Combat Bots Only 11 | . 2 2 4 2 . . . 11 4 4 1 9 4 7 9 10 2 1 . 6 5 4 . . 5 3 5 4 7 3 3 5 Max Kills in Single Turn 6 | 1 1 2 4 1 . 1 . 3 3 3 2 3 2 1 6 3 1 1 . 2 4 1 . . 4 2 2 1 2 1 1 3 Gunslinging 1 | . . . . . . . . . . . . . . . . . . . . 1 . . . . . . . . . . . . Exploded 5 | . . 2 4 . . . . 3 3 3 1 3 2 1 5 1 . . . 2 4 1 . . 4 1 2 1 1 1 . 2 Melee 1 | . . . . . . . . . . 1 . . . . . . . . . . . . . . . . . . 1 1 1 . Uniques/NPCs Destroyed . | . . . . . . . . . . . . . . . . . . . . . . . . . . . . . . . . . Combat | -11 -10 -10 -9 -9 -9 -8 -8 -8 -8 -8 -7 -7 -6 -6 -6 -6 -5 -5 -5 -5 -5 -5 -5 -5 -4 -4 -4 -3 -3 -3 -2 -2 -------- Run | Yrd Mat Min Mat Min Exi Min Mat Gar Mat Gar Fac Gar Fac Gar Fac Gar Fac Was Fac Gar Fac Upp Upp War Pro Fac Gar Res Tes Gar Res Qua Hostile Shots Fired 3570 | . 19 19 133 8 . . . 71 69 82 41 282 71 316 391 87 70 . . 100 154 38 10 . 39 152 292 174 264 171 275 242 Missed 1075 | . 5 4 33 . . . . 25 26 18 15 100 26 96 113 20 16 . . 31 27 12 3 . 12 43 75 89 72 58 84 72 Hits 2495 | . 14 15 100 8 . . . 46 43 64 26 182 45 220 278 67 54 . . 69 127 26 7 . 27 109 217 85 192 113 191 170 Melee 44 | . . . 1 3 . . . 1 . . . . . 5 3 . . . . . 6 . 7 . . . 12 . . 6 . . Projectile 2451 | . 14 15 99 5 . . . 45 43 64 26 182 45 215 275 67 54 . . 69 121 26 . . 27 109 205 85 192 107 191 170 AOE 12 | . . . . 5 . . . . . . . . . 2 1 . . . . 1 . . . . . 1 1 1 . . . . Critical Strikes 123 | . . 2 4 . . . . 1 3 2 . 3 1 2 6 1 1 . . 6 9 1 . . . 7 14 3 20 10 14 13 Actively Blocked 44 | . . . . . . . . . . . . . . . . . . . . . . . . . . . 6 3 1 7 14 13 Part Disruptions 14 | . . . 1 . . . . . . 1 1 . 1 . . . . . . . . . . . . 1 . . 4 . 4 1 Damage Taken 44166 | . 128 249 1352 307 . . . 678 462 767 312 1483 380 2086 3888 922 1173 . . 1532 2703 397 9 . 615 2120 4796 2240 4362 2482 4743 3980 Core 4830 | . 11 16 242 . . . . 38 10 47 15 85 18 179 346 113 58 . . 23 214 23 . . . 33 820 584 345 151 735 724 Absorbed by Shields 2558 | . . . . . . . . 168 172 155 68 258 290 704 62 . . . . . 27 77 8 . 27 45 79 . . 19 399 . Reduced by Siege Mode 345 | . . . . . . . . . . . . . . . . . . . . 31 228 . . . . 78 8 . . . . . Redirected to Core 265 | . . . . . . . . . . . . . . . . . . . . . . . . . . . . . . . . 265 Ignored by Resistances 168 | . . . . . . . . . . . . . . . . . . . . 168 . . . . . . . . . . . . Regen/Repaired (Parts) 5018 | . . . . . . . . . 47 . . . . . . . . 89 9 71 . . . . . . . . 780 1586 828 1608 Core Remaining (%) 58 | 100 . 89 . . . 39 . . . 82 . 85 . . . 22 . . . . . . . . 68 . 25 . . 16 . . Volleys Fired 1295 | 12 23 15 102 6 . 4 . 38 44 39 20 52 62 68 104 29 24 104 14 59 54 19 . . 17 71 90 48 53 55 27 42 Largest 3 | 2 2 2 2 2 . 2 . 3 3 3 2 3 3 3 3 3 3 3 1 3 3 2 . . 2 3 3 3 2 2 3 2 Hottest 344 | 40 40 40 89 66 . 66 . 89 89 87 90 135 155 275 219 340 143 96 90 250 158 74 . . 250 249 283 135 344 344 224 338 Shots Fired 2317 | 24 46 28 193 11 . 8 . 102 94 71 29 117 92 171 202 65 50 126 14 134 87 22 . . 19 144 190 68 62 55 53 40 Gun 1109 | 24 46 26 116 . . . . 31 14 9 . 64 16 47 65 38 30 33 . 109 39 17 . . 7 108 152 31 7 29 49 2 Cannon 1018 | . . . 69 11 . 8 . 63 78 56 23 44 73 115 115 22 20 86 14 17 23 . . . 2 35 25 27 51 3 . 38 Launcher 90 | . . 2 8 . . . . 8 2 6 . 9 3 9 8 . . . . 6 9 4 . . 7 1 5 3 . . . . Special 100 | . . . . . . . . . . . 6 . . . 14 5 . 7 . 2 16 1 . . 3 . 8 7 4 23 4 . Kinetic 1260 | 24 46 26 92 11 . 8 . 94 92 65 23 103 31 97 70 38 42 33 . 109 39 17 . . 1 27 119 21 . . . 32 Thermal 831 | . . . 91 . . . . . . . . 5 58 65 110 22 8 86 14 17 23 . . . 2 104 43 37 57 32 49 8 Explosive 90 | . . 2 8 . . . . 8 2 6 . 9 3 9 8 . . . . 6 9 4 . . 7 1 5 3 . . . . Electromagnetic 36 | . . . 2 . . . . . . . . . . . . . . . . . . . . . 6 12 15 . 1 . . . Robot Hit Streak 23 | 5 9 8 21 7 . 3 . 12 12 9 13 23 9 18 16 11 6 12 . 22 12 10 . . 11 10 13 14 11 11 12 18 Robot Miss Streak 8 | 2 2 1 3 2 . 2 . 3 3 3 3 2 4 8 7 4 4 3 . 3 2 3 . . 2 7 3 2 1 2 2 5 Penetration Max 2 | . . . . . . . . . 1 . . 1 . . 1 . . 1 . 1 2 . . . . 1 1 . . . . . Secondary Targets 7 | . . . 2 . . . . . . . . . . . . 1 . . . 3 . . . . . . . . . . 1 . Max Gunslinging Chain 1 | . . . 1 . . . . . . . . . . . . 1 . . . 1 . . . . . . . . . . 1 . Capacitor 1 | . . . . . . . . . . . . . . . . . . . . . . . . . . . . 1 . . . . Shots Hit Robots 1484 | 16 31 22 129 7 4 4 . 62 70 43 16 73 24 101 120 33 28 98 . 87 53 17 . . 11 77 135 33 63 53 41 33 Core Hits 824 | 8 8 6 73 6 . 2 . 42 25 27 7 57 18 57 92 24 12 16 . 54 48 14 . . 19 41 60 10 28 22 15 33 Critical Kills 16 | 2 . . . . . . . . . . . . 1 . 1 3 1 4 . 1 . . . . . 2 1 . . . . . Critical Parts Destroyed 13 | . . . . . . . . . 2 . . 1 . . . 2 . 2 . 1 . . . . . . 4 1 . . . . Critical Strikes 58 | 2 . . 3 . . . . 2 7 2 1 4 2 1 1 5 1 6 . 3 . . . . . 3 9 1 4 1 . . Burn 2 | . . . . . . . . . . . . . . . . . . . . . . . . . . 1 1 . . . . . Meltdown 10 | . . . . . . . . . . . . . 1 . . 3 1 4 . . . . . . . 1 . . . . . . Destroy 19 | 2 . . . . . . . . 1 . . . . . 1 2 . 2 . 3 . . . . . 1 6 1 . . . . Blast 20 | . . . 3 . . . . 2 5 2 1 3 1 1 . . . . . . . . . . . . 2 . . . . . Smash 2 | . . . . . . . . . 1 . . 1 . . . . . . . . . . . . . . . . . . . . Sever 5 | . . . . . . . . . . . . . . . . . . . . . . . . . . . . . 4 1 . . Melee Attacks 156 | . . . . . 4 . . 5 30 13 3 11 . 6 . . . . . . . . . . . . . . 41 23 11 9 Kinetic 9 | . . . . . . . . . . . . . . . . . . . . . . . . . . . . . . . . 9 Impact 68 | . . . . . . . . 5 30 13 3 11 . 6 . . . . . . . . . . . . . . . . . . Slashing 75 | . . . . . . . . . . . . . . . . . . . . . . . . . . . . . 41 23 11 . Piercing . | . . . . . . . . . . . . . . . . . . . . . . . . . . . . . . . . . Sneak Attacks 21 | . . . . . 4 . . . 6 . . . . . . . . . . . . . . . . . . . 5 3 . 3 Combat Hostiles 2 | . . . . . . . . . . . . . . . . . . . . . . . . . . . . . . 2 . . Follow-up Attacks . | . . . . . . . . . . . . . . . . . . . . . . . . . . . . . . . . . Damage Inflicted 53250 | 135 261 310 2844 147 . 84 . 2079 3016 2162 626 2626 991 3197 5237 1044 628 3170 . 3100 2718 650 10 . 825 2290 4321 1106 3725 2154 1626 2168 Guns 16665 | 135 259 188 778 . . . . 327 117 165 . 829 121 572 1061 419 313 809 . 2132 863 345 . . 102 1810 2730 414 162 625 1389 . Cannons 18719 | . . . 927 142 . 84 . 908 2091 1328 451 766 520 2193 1925 517 214 2361 . 136 259 . . . 12 329 678 175 1457 62 . 1184 Explosions 13315 | . . 116 1030 . . . . 844 182 526 168 979 341 432 2221 108 101 . . 832 1583 305 . . 711 121 913 424 491 194 . 693 Melee 4139 | . . . . . . . . . 578 143 . 52 . . . . . . . . . . . . . . . . 1610 1273 207 276 Ramming 412 | . 2 6 109 5 . . . . 48 . 7 . 9 . 30 . . . . . 13 . 10 . . 30 . 93 5 . 30 15 Kinetic 21682 | 135 259 188 1057 142 . 84 . 1235 2208 1493 451 1565 315 1515 1187 419 494 809 . 2132 863 345 . . . 657 2529 344 . . . 1256 Thermal 16145 | . . 55 639 . . . . . . . . 30 326 1363 2204 625 134 2361 . 206 259 . . . 92 1302 1072 245 2065 881 1389 897 Explosive 10258 | . . 61 706 . . . . 844 182 526 168 979 341 319 1816 . . . . 762 1583 305 . . 631 99 512 424 . . . . Electromagnetic 890 | . . . 333 . . . . . . . . . . . . . . . . . . . . . 102 202 208 . 45 . . . Impact 773 | . . . . . . . . . 578 143 . 52 . . . . . . . . . . . . . . . . . . . . Slashing 3090 | . . . . . . . . . . . . . . . . . . . . . . . . . . . . . 1610 1273 207 . Piercing . | . . . . . . . . . . . . . . . . . . . . . . . . . . . . . . . . . Highest Corruption 38 | . . . 1 1 1 1 . . 1 4 . . . 2 3 5 . . . . 5 5 5 5 . 10 38 2 32 32 29 37 Average Corruption 11 | . . . 1 1 1 1 . . 1 3 . . . 1 2 3 . . . . 4 5 5 5 . 5 32 1 13 32 12 31 Corruption Purged 1 | . . . . . . . . . 1 . . . . . . . . . . . . . . . . . . . . . . . Corruption Blocked . | . . . . . . . . . . . . . . . . . . . . . . . . . . . . . . . . . Effects 404 | . . . 13 9 6 5 . . 1 27 . . . 2 20 13 . . . . 4 19 15 2 . 6 122 4 32 54 13 37 Message Errors 85 | . . . 2 2 2 2 . . . 7 . . . . 5 4 . . . . 1 6 5 1 . 1 24 . 8 7 1 7 Matter Fused 103 | . . . 4 1 . 2 . . . 7 . . . 1 6 1 . . . . . 6 4 1 . 2 30 . 14 14 4 6 Heat Flow Errors 46 | . . . 1 2 2 . . . . 4 . . . . . 3 . . . . . 3 2 . . . 12 1 2 5 1 8 Energy Discharges 54 | . . . 2 . 2 . . . . 2 . . . . 2 2 . . . . 1 3 2 . . 1 17 1 3 12 2 2 Parts Rejected 6 | . . . . . . . . . . . . . . . 1 . . . . . 1 . 1 . . . . 1 . 2 . . Parts Fused 5 | . . . 1 1 . . . . . . . . . . . . . . . . 1 1 . . . . 1 . . . . . Data Loss (minor) 48 | . . . 2 2 . 1 . . 1 5 . . . . 2 . . . . . . . . . . . 18 . 2 8 1 6 Data Loss (major) 22 | . . . 1 . . . . . . 1 . . . 1 2 1 . . . . . . 1 . . 1 8 . . 3 1 2 Misfires 3 | . . . . . . . . . . . . . . . . 1 . . . . . . . . . 1 1 . . . . . Alerts 8 | . . . . . . . . . . 1 . . . . 1 . . . . . . . . . . . 4 . 1 1 . . Misdirections 8 | . . . . . . . . . . . . . . . . . . . . . . . . . . . 1 . 1 1 3 2 Weapon Failures 16 | . . . . 1 . . . . . . . . . . 1 1 . . . . . . . . . . 6 1 1 1 . 4 Overload Shots . | . . . . . . . . . . . . . . . . . . . . . . . . . . . . . . . . . Overflow Damage 1990 | . . 58 50 . . . . 2 480 97 56 91 11 63 177 . 88 . . . 3 10 . . 52 46 27 123 290 97 . 169 Projectiles 517 | . . . . . . . . 2 80 95 56 2 11 63 30 . 11 . . . . . . . . 38 26 41 58 . . 4 Explosions 566 | . . 58 48 . . . . . 46 . . 37 . . 147 . 77 . . . 3 10 . . 52 . 1 82 5 . . . Melee 907 | . . . 2 . . . . . 354 2 . 52 . . . . . . . . . . . . . 8 . . 227 97 . 165 Knockbacks 85 | . . 1 6 2 . 2 . 8 15 5 2 3 4 12 1 . 1 . . . . . . . . . 5 2 1 . . 15 Impact 8 | . . 1 . . . . . . 2 . . . . . 1 . . . . . . . . . . . . 2 1 . . 1 Kinetic 74 | . . . 5 2 . 2 . 8 13 5 2 3 4 11 . . 1 . . . . . . . . . 5 . . . . 13 Secondary 3 | . . . 1 . . . . . . . . . . 1 . . . . . . . . . . . . . . . . . 1 Self-Inflicted Damage 1233 | . . 44 99 . . . . 36 . 19 86 4 . 8 83 . 175 . . 54 181 . . . 59 . 127 151 15 . 4 88 Shots 40 | . . 1 3 . . . . 1 . 1 1 1 . 1 5 . 2 . . 1 3 . . . 2 . 7 2 2 . . 7 Rammed 31 | . 1 2 11 . . . . . 6 . . . 2 . 2 . . . . . 1 . 1 . . 1 . . 1 . 3 . Targets Rammed 51 | . 1 3 13 1 . . . . 6 . 1 . 2 . 2 . . . . . 1 . 1 . . 1 . 10 2 . 4 3 Kicked 15 | . . . . . . . . . . . . . . . . . . . . . . . . . . . . 10 1 . 1 3 Crushed 5 | . . 1 2 1 . . . . . . 1 . . . . . . . . . . . . . . . . . . . . . Highest Temperature 557 | . 6 48 235 237 236 . . 271 96 324 91 320 198 354 360 343 . 372 295 243 344 195 164 . 183 471 413 156 416 207 211 557 Average Temperature 92 | . 6 24 33 95 115 . . 79 22 99 28 100 70 83 88 132 . 81 139 82 109 100 71 . 63 99 97 33 162 69 100 147 Received Heat Transfer 6192 | . 36 144 504 . . . . 204 231 185 35 436 62 639 555 132 45 . . 447 536 49 . . 90 78 565 54 266 216 44 639 Effects 17 | . . . . . . . . . . . . . . . . 1 . 1 1 . 3 . . . . 3 2 . 4 . . 2 Shutdowns 4 | . . . . . . . . . . . . . . . . . . . . . . . . . . 1 . . 2 . . 1 Energy Bleed 6 | . . . . . . . . . . . . . . . . 1 . . 1 . . . . . . 1 1 . 2 . . . Interference 4 | . . . . . . . . . . . . . . . . . . . . . 3 . . . . 1 . . . . . . Short Circuit 2 | . . . . . . . . . . . . . . . . . . . . . . . . . . . 1 . . . . 1 Damage (minor) 1 | . . . . . . . . . . . . . . . . . . 1 . . . . . . . . . . . . . . Siege Activations 8 | . . . . . . . . . . . . . . . . . . . . 2 2 . . . . 3 1 . . . . . Total Turns 150 | . . . . . . . . . . . . . . . . . . . . 46 49 . . . . 32 23 . . . . . Longest Duration 48 | . . . . . . . . . . . . . . . . . . . . 39 48 . . . . 14 23 . . . . . Martial Activations . | . . . . . . . . . . . . . . . . . . . . . . . . . . . . . . . . . Shielding Activations . | . . . . . . . . . . . . . . . . . . . . . . . . . . . . . . . . . Robots Disrupted . | . . . . . . . . . . . . . . . . . . . . . . . . . . . . . . . . . Combat Hostiles . | . . . . . . . . . . . . . . . . . . . . . . . . . . . . . . . . . Robots Corrupted 5 | . . . . . . . . . 2 1 . 1 . . . . . . . . . . . . . 1 . . . . . . Combat Hostiles 1 | . . . . . . . . . . 1 . . . . . . . . . . . . . . . . . . . . . . Parts Fried 9 | . . . . . . . . . 4 . . 2 . . . . . . . 1 . . . . . 2 . . . . . . Impact Corruptions 15 | . . . 1 . . . . . 9 1 . 2 . . . . . . . . . . . . . 1 . . . . . 1 Robots Melted 22 | . . . 1 . . . . . . . . . 1 1 . 3 1 4 . 1 . . . . 1 1 2 . 2 2 . 2 Combat Hostiles 22 | . . . 1 . . . . . . . . . 1 1 . 3 1 4 . 1 . . . . 1 1 2 . 2 2 . 2 Parts Melted 104 | . . . 5 . . . . . . . . . 6 7 10 10 . 5 . 4 . . . . 1 4 8 . 10 8 5 21 Heat Transferred 30391 | . . 50 1725 . . . . . . . . 37 487 2482 2868 1530 150 3700 . 550 400 . . . 560 2373 3795 296 1365 2254 1369 4400 Parts Sabotaged . | . . . . . . . . . . . . . . . . . . . . . . . . . . . . . . . . . Parts Stolen 5 | . . . . . . . . . . . . . . . . . . . . . . . 5 . . . . . . . . . Parts Stripped 42 | . . . . . . . . . . . . . . . . . . . . . . . . . . . . . . . . 42 Power Chain Reactions 3 | . . . 1 . . . . . . . . . . . . . . . . . . . . . . 1 . . 1 . . . Alert | -11 -10 -10 -9 -9 -9 -8 -8 -8 -8 -8 -7 -7 -6 -6 -6 -6 -5 -5 -5 -5 -5 -5 -5 -5 -4 -4 -4 -3 -3 -3 -2 -2 ------- Run | Yrd Mat Min Mat Min Exi Min Mat Gar Mat Gar Fac Gar Fac Gar Fac Gar Fac Was Fac Gar Fac Upp Upp War Pro Fac Gar Res Tes Gar Res Qua Maximum Alert Level 5 | . . . 1 . . . . 2 1 3 2 3 2 3 2 3 2 . 2 5 4 . . . . . 3 2 . 1 . . Low Security (%) 43 | 100 100 100 55 100 . 100 100 42 65 16 8 4 . . 3 . . 100 41 . . . . . . 100 10 8 100 30 100 100 Level 1 24 | . . . 44 . . . . 6 34 22 80 13 8 16 78 15 74 . 45 1 . . . . . . 42 29 . 69 . . Level 2 17 | . . . . . . . . 50 . 32 10 38 91 20 18 67 25 . 13 15 . . . . . . 45 62 . . . . Level 3 9 | . . . . . . . . . . 28 . 43 . 62 . 17 . . . 7 74 . . . . . . . . . . . Level 4 4 | . . . . . . . . . . . . . . . . . . . . 57 25 . . . . . . . . . . . Level 5 1 | . . . . . . . . . . . . . . . . . . . . 17 . . . . . . . . . . . . High Security . | . . . . . . . . . . . . . . . . . . . . . . . . . . . . . . . . . Max Security . | . . . . . . . . . . . . . . . . . . . . . . . . . . . . . . . . . Peak Influence 1726 | 10 55 84 307 116 . 10 . 644 364 891 467 1082 609 1084 570 747 449 99 422 1726 1540 . . . . 90 759 527 186 363 186 145 Initial 905 | . 6 9 . 116 . . . 2 313 100 467 133 567 255 569 367 392 99 . 270 905 . . . . . 43 426 48 92 186 45 Average 335 | 3 7 12 142 27 . . . 356 128 481 296 665 489 724 311 559 381 7 215 1209 1026 . . . . 34 346 383 55 240 142 47 Influence Increases 15472 | 25 177 196 1068 60 . 10 4 662 655 791 254 989 288 929 1079 450 231 28 558 1636 1111 150 . . 283 476 1076 466 630 521 255 414 Destroy 0b10 Robot/C 7840 | . 100 120 640 40 . . . 440 340 460 80 540 200 520 520 320 80 . 200 580 600 140 . . 240 240 360 160 280 240 120 280 Destroy 0b10 Robot/NC 420 | 25 . 10 55 10 . 10 . . 50 . 20 5 10 . 60 . . . 10 . 45 . . . . 30 5 5 30 10 5 25 Destroy Leader 1196 | . 10 20 190 10 . . . 40 96 30 32 30 40 40 114 40 30 . 22 30 110 10 . . 40 52 40 10 50 50 40 20 Allied During Kill 486 | . . 7 . . . . . . . . 4 . . . . . . . 157 196 79 . . . 3 . 7 23 . 10 . . Successful Hack 186 | . 22 . 26 . . . 4 . 5 . . . . 14 . . . . . 35 . . . . . 5 . 26 17 . 18 14 Select Force Hacks 60 | . 30 . 30 . . . . . . . . . . . . . . . . . . . . . . . . . . . . . Disable Machine 900 | . . 15 60 . . . . 30 30 45 75 . . 60 120 . 45 . 105 15 15 . . . . 45 . 105 75 . . 60 Anti-Garrison Action 2300 | . . . . . . . . 100 . 200 . 350 . 200 150 50 . . . 550 . . . . . . 550 . . 150 . . Destroy Structure 1574 | . . 24 52 . . . . 37 59 56 43 64 38 80 100 25 76 28 64 140 262 . . . . 104 99 92 58 31 27 15 Partial Spotted 30 | . . . . . . . . . . . . . . . 15 . . . . . . . . . . . . . . 15 . . Lose Combat Pursuer 480 | . 15 . 15 . . . . 15 75 . . . . 15 . 15 . . . 90 . . . . . . 15 45 120 15 45 . Influence Decreases 15347 | 15 163 220 769 359 . 10 . 22 1144 55 954 98 1005 210 1638 228 695 311 172 296 1341 910 411 325 283 414 379 1138 594 311 507 370 Entered New Map 5471 | . 4 15 . 183 . . . 2 331 55 424 58 515 110 515 158 355 184 . 116 821 554 141 325 . . 19 333 39 31 147 36 Time Decay 6549 | 15 159 158 569 176 . 10 . . 573 . 490 . 470 . 538 . 270 127 112 . 410 326 270 . 283 334 . 350 385 . 230 294 Lost Part 1550 | . . 10 50 . . . . 20 10 . . 40 20 100 210 50 70 . . . 50 30 . . . 80 320 140 170 20 120 40 Lost Ally 847 | . . 37 . . . . . . . . 40 . . . 100 20 . . 60 180 60 . . . . . 40 40 . 260 10 . Purge Threat 930 | . . . 150 . . . . . 230 . . . . . 275 . . . . . . . . . . . . 275 . . . . Squads Dispatched 58 | . 2 . 5 . . . 1 . 3 . 2 . 4 . 13 . . . . . 10 . . . . 2 . 1 7 . 4 4 Investigation 6 | . 1 . 1 . . . . . . . . . . . 2 . . . . . . . . . . . . . . . 2 . Extermination 15 | . . . . . . . . . . . 1 . 2 . 2 . . . . . 1 . . . . 2 . 1 3 . 1 2 Reinforcement 25 | . 1 . 4 . . . 1 . 3 . 1 . 2 . 5 . . . . . 2 . . . . . . . 3 . 1 2 Assault 8 | . . . . . . . . . . . . . . . 2 . . . . . 6 . . . . . . . . . . . Garrison 4 | . . . . . . . . . . . . . . . 2 . . . . . 1 . . . . . . . 1 . . . Intercept . | . . . . . . . . . . . . . . . . . . . . . . . . . . . . . . . . . Searches Triggered . | . . . . . . . . . . . . . . . . . . . . . . . . . . . . . . . . . Construction Impeded 7 | . . . 2 . . . . . . . . . 2 . 1 . . . . . 1 . . . . . . . . . . 1 Haulers Reinforced 1 | . . . . . . . . . . . . . . . . . . . . . . . . . . . . . 1 . . . Active Scanning Responses . | . . . . . . . . . . . . . . . . . . . . . . . . . . . . . . . . . Cargo Convoy Interrupts 2 | . . . . . . . . . . . 1 . . . 1 . . . . . . . . . . . . . . . . . Alert ID Control Effect 8 | . . . . . . . . . . . . . . . . . . . . . 2 . . . . . 4 . . 2 . . Stealth | -11 -10 -10 -9 -9 -9 -8 -8 -8 -8 -8 -7 -7 -6 -6 -6 -6 -5 -5 -5 -5 -5 -5 -5 -5 -4 -4 -4 -3 -3 -3 -2 -2 --------- Run | Yrd Mat Min Mat Min Exi Min Mat Gar Mat Gar Fac Gar Fac Gar Fac Gar Fac Was Fac Gar Fac Upp Upp War Pro Fac Gar Res Tes Gar Res Qua Distress Signals 22 | . 5 . 8 1 . . . . 1 . . 1 . . 1 . 1 . 1 . . . . . . . . 1 . . 2 . Communications Jammed 19 | . . . . . . . . . . . . . . . . . . . . . . . . . . 19 . . . . . . Distress Signals 19 | . . . . . . . . . . . . . . . . . . . . . . . . . . 19 . . . . . . Times Spotted 582 | . 16 6 52 3 . . . 23 23 22 12 28 13 29 45 22 6 5 1 27 38 7 5 . 13 24 26 33 30 35 22 16 Peak Tracking Total 14 | . 3 2 6 2 . . . 6 4 4 3 7 4 4 14 6 2 1 1 9 6 4 5 . 4 7 5 8 10 8 12 5 Tactical Retreats 24 | . 1 . 1 . . . . 1 4 . . . . 1 . 1 . . . 4 . . . . . . 1 3 3 1 3 . Traps | -11 -10 -10 -9 -9 -9 -8 -8 -8 -8 -8 -7 -7 -6 -6 -6 -6 -5 -5 -5 -5 -5 -5 -5 -5 -4 -4 -4 -3 -3 -3 -2 -2 ------- Run | Yrd Mat Min Mat Min Exi Min Mat Gar Mat Gar Fac Gar Fac Gar Fac Gar Fac Was Fac Gar Fac Upp Upp War Pro Fac Gar Res Tes Gar Res Qua Traps Triggered 41 | . . . 1 . . . . 4 2 10 . 2 . 3 1 3 1 . . 7 . . . . . 1 3 . 2 . . 1 Indirectly . | . . . . . . . . . . . . . . . . . . . . . . . . . . . . . . . . . Trap Hack Attempts . | . . . . . . . . . . . . . . . . . . . . . . . . . . . . . . . . . Triggered . | . . . . . . . . . . . . . . . . . . . . . . . . . . . . . . . . . Disarmed . | . . . . . . . . . . . . . . . . . . . . . . . . . . . . . . . . . Reprogrammed . | . . . . . . . . . . . . . . . . . . . . . . . . . . . . . . . . . Reused . | . . . . . . . . . . . . . . . . . . . . . . . . . . . . . . . . . Traps Extracted . | . . . . . . . . . . . . . . . . . . . . . . . . . . . . . . . . . Installed . | . . . . . . . . . . . . . . . . . . . . . . . . . . . . . . . . . Triggered . | . . . . . . . . . . . . . . . . . . . . . . . . . . . . . . . . . Most Traps Carried 1 | . . . . . . . . . . . . . . . . . . . . . . . . . 1 1 . . . . . . Machines | -11 -10 -10 -9 -9 -9 -8 -8 -8 -8 -8 -7 -7 -6 -6 -6 -6 -5 -5 -5 -5 -5 -5 -5 -5 -4 -4 -4 -3 -3 -3 -2 -2 ---------- Run | Yrd Mat Min Mat Min Exi Min Mat Gar Mat Gar Fac Gar Fac Gar Fac Gar Fac Was Fac Gar Fac Upp Upp War Pro Fac Gar Res Tes Gar Res Qua Machines Disabled 87 | . . 1 4 . . . . 2 2 5 5 4 . 7 9 1 3 . 7 10 1 . . . . 3 4 7 6 2 . 4 Max in Single Turn 3 | . . 1 3 . . . . 2 1 1 3 1 . 2 2 1 3 . . 2 1 . . . . 1 1 1 1 1 . 1 Garrison Access 2 | . . . . . . . . . . . . . . . 1 . . . . . 1 . . . . . . . . . . . Garrison Relay 17 | . . . . . . . . . . 2 . 4 . 2 . 1 . . . 4 . . . . . . 2 . . 2 . . Phase Generator 1 | . . . . . . . . . . . . . . . . . . . . 1 . . . . . . . . . . . . Machines Repaired . | . . . . . . . . . . . . . . . . . . . . . . . . . . . . . . . . . Machines Dismantled . | . . . . . . . . . . . . . . . . . . . . . . . . . . . . . . . . . Machines Sabotaged . | . . . . . . . . . . . . . . . . . . . . . . . . . . . . . . . . . Overloaded Fab Kills . | . . . . . . . . . . . . . . . . . . . . . . . . . . . . . . . . . Hacking | -11 -10 -10 -9 -9 -9 -8 -8 -8 -8 -8 -7 -7 -6 -6 -6 -6 -5 -5 -5 -5 -5 -5 -5 -5 -4 -4 -4 -3 -3 -3 -2 -2 --------- Run | Yrd Mat Min Mat Min Exi Min Mat Gar Mat Gar Fac Gar Fac Gar Fac Gar Fac Was Fac Gar Fac Upp Upp War Pro Fac Gar Res Tes Gar Res Qua Machines Accessed 73 | . 7 . 13 . 2 . 1 . 9 2 2 1 4 1 1 . 1 . 2 3 1 . . . . 4 1 4 7 1 5 1 Terminals 53 | . 6 . 10 . . . . . 6 2 . 1 2 1 . . 1 . 1 3 1 . . . . 1 1 4 6 1 5 1 Fabricators 1 | . . . . . . . . . . . 1 . . . . . . . . . . . . . . . . . . . . . Repair Stations 3 | . . . 1 . . . . . 2 . . . . . . . . . . . . . . . . . . . . . . . Recycling Units 4 | . 1 . 1 . . . . . . . . . 1 . . . . . . . . . . . . 1 . . . . . . Scanalyzers 2 | . . . 1 . . . . . . . . . . . . . . . . . . . . . . 1 . . . . . . Garrison Access 8 | . . . . . . . 1 . 1 . 1 . 1 . 1 . . . 1 . . . . . . 1 . . 1 . . . Total Hacks 181 | . 22 . 40 . 2 . 2 . 22 4 4 2 11 2 1 . 1 . 4 6 1 . . . . 13 2 9 15 3 13 2 Successful 83 | . 13 . 25 . 2 . 1 . 9 . 2 . 2 1 1 . . . 1 3 . . . . . 8 . 2 8 . 4 1 Failed 97 | . 8 . 15 . . . 1 . 13 4 2 2 9 1 . . 1 . 3 3 1 . . . . 5 2 7 7 3 9 1 Catastrophic 19 | . 2 . 1 . . . . . 2 1 . 1 2 1 . . . . 1 1 . . . . . 1 1 2 1 1 1 . Database Lockouts 1 | . 1 . . . . . . . . . . . . . . . . . . . . . . . . . . . . . . . Manual 85 | . 17 . 27 . 1 . . . 14 . 2 . 7 1 . . . . 3 1 . . . . . 2 . 4 4 . 2 . Terminals 143 | . 21 . 33 . . . . . 16 4 . 2 8 2 . . 1 . 3 6 1 . . . . 3 2 9 14 3 13 2 Fabricators 3 | . . . . . . . . . . . 3 . . . . . . . . . . . . . . . . . . . . . Repair Stations 9 | . . . 4 . . . . . 5 . . . . . . . . . . . . . . . . . . . . . . . Recycling Units 5 | . 1 . 1 . . . . . . . . . 2 . . . . . . . . . . . . 1 . . . . . . Scanalyzers 10 | . . . 2 . . . . . . . . . . . . . . . . . . . . . . 8 . . . . . . Garrison Access 9 | . . . . . . . 2 . 1 . 1 . 1 . 1 . . . 1 . . . . . . 1 . . 1 . . . Terminal Hacks 37 | . 5 . 8 . 2 . . . 4 . . . . 1 . . . . . 3 . . . . . 1 . 2 6 . 4 1 Record 1 | . . . . . 1 . . . . . . . . . . . . . . . . . . . . . . . . . . . Robot Analysis 3 | . 1 . 2 . . . . . . . . . . . . . . . . . . . . . . . . . . . . . Prototype ID Bank 4 | . 3 . 1 . . . . . . . . . . . . . . . . . . . . . . . . . . . . . Open Door 3 | . . . . . . . . . . . . . . . . . . . . 1 . . . . . . . . 1 . 1 . Branch Access Points 2 | . . . . . . . . . . . . . . . . . . . . . . . . . . . . 1 . . 1 . Emergency Access Points 4 | . . . 1 . . . . . . . . . . 1 . . . . . 1 . . . . . . . . . . 1 . Terminal Index 4 | . . . . . . . . . . . . . . . . . . . . . . . . . . . . 1 1 . 1 1 Alert Level 1 | . . . . . . . . . 1 . . . . . . . . . . . . . . . . . . . . . . . Unreport Threat 3 | . . . 1 . . . . . 2 . . . . . . . . . . . . . . . . . . . . . . . Locate Traps 3 | . . . 1 . . . . . 1 . . . . . . . . . . . . . . . . . . . 1 . . . Maintenance Status 2 | . . . . . . . . . . . . . . . . . . . . . . . . . . 1 . . 1 . . . Patrol Status 1 | . . . . . . . . . . . . . . . . . . . . . . . . . . . . . 1 . . . Hauler Manifests 1 | . 1 . . . . . . . . . . . . . . . . . . . . . . . . . . . . . . . Zone Layout 3 | . . . 2 . . . . . . . . . . . . . . . . . . . . . . . . . 1 . . . Patrol Navigation 1 | . . . . . . . . . . . . . . . . . . . . 1 . . . . . . . . . . . . Proto ID Catalog 1 | . . . . . 1 . . . . . . . . . . . . . . . . . . . . . . . . . . . Fabricator Hacks 1 | . . . . . . . . . . . 1 . . . . . . . . . . . . . . . . . . . . . Network Status 1 | . . . . . . . . . . . 1 . . . . . . . . . . . . . . . . . . . . . Repair Station Hacks 5 | . . . 1 . . . . . 4 . . . . . . . . . . . . . . . . . . . . . . . Scan Component 3 | . . . 1 . . . . . 2 . . . . . . . . . . . . . . . . . . . . . . . Repair 2 | . . . . . . . . . 2 . . . . . . . . . . . . . . . . . . . . . . . Recycling Unit Hacks . | . . . . . . . . . . . . . . . . . . . . . . . . . . . . . . . . . Scanalyzer 5 | . . . . . . . . . . . . . . . . . . . . . . . . . . 5 . . . . . . Insert Component 2 | . . . . . . . . . . . . . . . . . . . . . . . . . . 2 . . . . . . Analyze 3 | . . . . . . . . . . . . . . . . . . . . . . . . . . 3 . . . . . . Garrison Access Hacks 8 | . . . . . . . 1 . 1 . 1 . 1 . 1 . . . 1 . . . . . . 1 . . 1 . . . Unlock Access 8 | . . . . . . . 1 . 1 . 1 . 1 . 1 . . . 1 . . . . . . 1 . . 1 . . . Unauthorized Hacks 27 | . 8 . 16 . . . . . . . . . 1 . . . . . . . . . . . . 1 . . 1 . . . Terminals 24 | . 7 . 15 . . . . . . . . . . . . . . . . . . . . . . 1 . . 1 . . . Track 1 | . . . 1 . . . . . . . . . . . . . . . . . . . . . . . . . . . . . Botnet 4 | . 2 . 2 . . . . . . . . . . . . . . . . . . . . . . . . . . . . . Disrupt 1 | . . . 1 . . . . . . . . . . . . . . . . . . . . . . . . . . . . . Operators 3 | . . . 1 . . . . . . . . . . . . . . . . . . . . . . 1 . . 1 . . . Skim 15 | . 5 . 10 . . . . . . . . . . . . . . . . . . . . . . . . . . . . . Fabricators . | . . . . . . . . . . . . . . . . . . . . . . . . . . . . . . . . . Repair Stations . | . . . . . . . . . . . . . . . . . . . . . . . . . . . . . . . . . Recycling Units 3 | . 1 . 1 . . . . . . . . . 1 . . . . . . . . . . . . . . . . . . . Reject 1 | . . . . . . . . . . . . . 1 . . . . . . . . . . . . . . . . . . . Tunnel 2 | . 1 . 1 . . . . . . . . . . . . . . . . . . . . . . . . . . . . . Scanalyzers . | . . . . . . . . . . . . . . . . . . . . . . . . . . . . . . . . . Garrison Access . | . . . . . . . . . . . . . . . . . . . . . . . . . . . . . . . . . Data Cores Recovered 1 | . . . 1 . . . . . . . . . . . . . . . . . . . . . . . . . . . . . Used . | . . . . . . . . . . . . . . . . . . . . . . . . . . . . . . . . . Hacking Detections 61 | . 6 . 12 . . . 1 . 8 2 1 1 3 1 . . 1 . 1 2 1 . . . . 3 1 4 6 1 5 1 Full Trace Events 5 | . . . . . . . . . . . . 1 . . . . . . . . . . . . . . 1 . . 1 2 . Feedback Events . | . . . . . . . . . . . . . . . . . . . . . . . . . . . . . . . . . Feedback Blocked . | . . . . . . . . . . . . . . . . . . . . . . . . . . . . . . . . . Robot Schematics Acquired 1 | . . . . . . . . . . . . . . . . . . . . . . . . . . . . . 1 . . . Robots Built . | . . . . . . . . . . . . . . . . . . . . . . . . . . . . . . . . . Authchips . | . . . . . . . . . . . . . . . . . . . . . . . . . . . . . . . . . Time . | . . . . . . . . . . . . . . . . . . . . . . . . . . . . . . . . . Total Robot Build Rating . | . . . . . . . . . . . . . . . . . . . . . . . . . . . . . . . . . Part Schematics Acquired 3 | . . . . . . . . . . . . . . . . . . . . . . . . . . 1 . . 2 . . . Parts Built . | . . . . . . . . . . . . . . . . . . . . . . . . . . . . . . . . . Authchips . | . . . . . . . . . . . . . . . . . . . . . . . . . . . . . . . . . Time . | . . . . . . . . . . . . . . . . . . . . . . . . . . . . . . . . . Total Part Build Rating . | . . . . . . . . . . . . . . . . . . . . . . . . . . . . . . . . . Parts Repaired 2 | . . . . . . . . . 2 . . . . . . . . . . . . . . . . . . . . . . . Time 85 | . . . . . . . . . 85 . . . . . . . . . . . . . . . . . . . . . . . Parts Recycled . | . . . . . . . . . . . . . . . . . . . . . . . . . . . . . . . . . Recycled Matter . | . . . . . . . . . . . . . . . . . . . . . . . . . . . . . . . . . Retrieved Matter . | . . . . . . . . . . . . . . . . . . . . . . . . . . . . . . . . . Retrieved Components . | . . . . . . . . . . . . . . . . . . . . . . . . . . . . . . . . . Parts Scanalyzed 2 | . . . . . . . . . . . . . . . . . . . . . . . . . . 2 . . . . . . Part Schematics Acquired 1 | . . . . . . . . . . . . . . . . . . . . . . . . . . 1 . . . . . . Parts Damaged . | . . . . . . . . . . . . . . . . . . . . . . . . . . . . . . . . . Bothacking | -11 -10 -10 -9 -9 -9 -8 -8 -8 -8 -8 -7 -7 -6 -6 -6 -6 -5 -5 -5 -5 -5 -5 -5 -5 -4 -4 -4 -3 -3 -3 -2 -2 ------------ Run | Yrd Mat Min Mat Min Exi Min Mat Gar Mat Gar Fac Gar Fac Gar Fac Gar Fac Was Fac Gar Fac Upp Upp War Pro Fac Gar Res Tes Gar Res Qua Used RIF Installer 10 | . . . . . . . . 2 . 1 . 1 . 1 . 1 . . . 1 . . . . . . 2 . . 1 . . Hotswap 1 | . . . . . . . . 1 . . . . . . . . . . . . . . . . . . . . . . . . Code Merge 2 | . . . . . . . . . . . . 1 . . . . . . . . . . . . . . 1 . . . . . Zone Cloak 1 | . . . . . . . . . . 1 . . . . . . . . . . . . . . . . . . . . . . Watcher Feeds 1 | . . . . . . . . . . . . . . . . 1 . . . . . . . . . . . . . . . . Patrol Navigation 1 | . . . . . . . . . . . . . . 1 . . . . . . . . . . . . . . . . . . Alert ID Control 1 | . . . . . . . . . . . . . . . . . . . . 1 . . . . . . . . . . . . Structural Interface 1 | . . . . . . . . . . . . . . . . . . . . . . . . . . . . . . 1 . . Crosswire 1 | . . . . . . . . . . . . . . . . . . . . . . . . . . . 1 . . . . . Robots Hacked 53 | . . . . . 4 . . . . . 4 . . . 7 2 . 6 . . 7 . . . 2 . 4 2 2 12 1 . Non-combat 8 | . . . . . 3 . . . . . 1 . . . 1 . . . . . 1 . . . . . . 1 . . 1 . Combat 45 | . . . . . 1 . . . . . 3 . . . 6 2 . 6 . . 6 . . . 2 . 4 1 2 12 . . Robot Hacks Applied 64 | . . . . . 4 . . . . . 5 . . . 11 2 . 7 . . 7 . . . 2 . 4 4 3 13 2 . parse_system 5 | . . . . . 4 . . . . . . . . . . . . 1 . . . . . . . . . . . . . . find_chute 1 | . . . . . . . . . . . 1 . . . . . . . . . . . . . . . . . . . . . purge_threat 4 | . . . . . . . . . . . . . . . 2 . . . . . . . . . . . . 2 . . . . block_reporting 2 | . . . . . . . . . . . . . . . . . . . . . . . . . . . . 1 . . 1 . locate_prototypes 1 | . . . . . . . . . . . . . . . . . . . . . . . . . . . . . 1 . . . ignore_targets 6 | . . . . . . . . . . . . . . . . . . 6 . . . . . . . . . . . . . . find_garrison 3 | . . . . . . . . . . . 1 . . . 1 . . . . . 1 . . . . . . . . . . . amplify_resonance 4 | . . . . . . . . . . . . . . . 1 1 . . . . . . . . . . 1 . . 1 . . disable_weapons 1 | . . . . . . . . . . . 1 . . . . . . . . . . . . . . . . . . . . . reboot_system 1 | . . . . . . . . . . . . . . . 1 . . . . . . . . . . . . . . . . . go_dormant 1 | . . . . . . . . . . . . . . . . . . . . . . . . . . . . . . 1 . . overwrite_iff 20 | . . . . . . . . . . . 1 . . . 3 . . . . . 2 . . . 2 . 1 1 . 10 . . streamctrl_low 1 | . . . . . . . . . . . . . . . . . . . . . . . . . . . . . 1 . . . formatsys_low 3 | . . . . . . . . . . . . . . . 1 . . . . . . . . . . . . . 1 . 1 . formatsys_high 11 | . . . . . . . . . . . 1 . . . 2 1 . . . . 4 . . . . . 2 . . 1 . . Relay Couplers Released 76 | . . . . . . . . . . 9 . 17 . 9 1 5 . . . 18 3 . . . . . 6 . . 8 . . Machine Destruction 76 | . . . . . . . . . . 9 . 17 . 9 1 5 . . . 18 3 . . . . . 6 . . 8 . . Attached 13 | . . . . . . . . . . . 1 1 . 1 2 3 . . . . 1 . . . . . 2 . . 2 . . Crosswired 9 | . . . . . . . . . . . . . . . . . . . . . . . . . . . 2 . . 7 . . Merged Code Value 220 | . . . . . . . . . . . . 6 . 44 . 16 . . . 67 . . . . . . 21 . . 66 . . Fabnet Peak Effective % . | . . . . . . . . . . . . . . . . . . . . . . . . . . . . . . . . . Robots Rewired 8 | . . . . . . . . . . . . . . . . . . . . 4 . . . . . . 2 1 . 1 . . Allies Hacked . | . . . . . . . . . . . . . . . . . . . . . . . . . . . . . . . . . Hacks Repelled . | . . . . . . . . . . . . . . . . . . . . . . . . . . . . . . . . . Allies | -11 -10 -10 -9 -9 -9 -8 -8 -8 -8 -8 -7 -7 -6 -6 -6 -6 -5 -5 -5 -5 -5 -5 -5 -5 -4 -4 -4 -3 -3 -3 -2 -2 -------- Run | Yrd Mat Min Mat Min Exi Min Mat Gar Mat Gar Fac Gar Fac Gar Fac Gar Fac Was Fac Gar Fac Upp Upp War Pro Fac Gar Res Tes Gar Res Qua Total Allies 68 | . . 4 . . . . . . . . 2 . . . 6 1 . 18 . 4 6 . . . 2 . 7 2 2 13 1 . Largest Group 18 | . . 3 . . . . . . . . 2 . . . 1 . . 18 16 8 4 1 1 1 1 . 3 3 1 2 1 . Highest-Rated Group 656 | . . 55 . . . . . . . . 64 . . . 41 . . 656 569 315 310 54 54 54 47 . 222 233 49 175 26 . Highest-Rated Ally 148 | . . 31 . . . . . . . . 32 . . . 41 . . 50 46 148 148 54 54 54 47 . 95 95 49 148 26 . Total Orders 10 | . . . . . . . . . . . . . 2 . 5 . . . . . 1 . . . . . . . 2 . . . AID 1 | . . . . . . . . . . . . . . . . . . . . . 1 . . . . . . . . . . . EXPLORE 5 | . . . . . . . . . . . . . 1 . 3 . . . . . . . . . . . . . 1 . . . RETURN 4 | . . . . . . . . . . . . . 1 . 2 . . . . . . . . . . . . . 1 . . . Ally Attacks 365 | . . 18 . . . . . . . . 10 . . . 8 . . . 63 85 95 . . . 5 . 14 15 . 52 . . Total Damage 10999 | . . 210 . . . . . . . . 314 . . . 233 . . . 1591 2199 2760 . . . 156 . 896 1031 . 1609 . . Kills 73 | . . 3 . . . . . . . . 2 . . . . . . . 15 13 25 . . . 1 . 5 5 . 4 . . Allies Corrupted 1 | . . . . . . . . . . . . . . . . . . . . . . . . . . . . 1 . . . . Allies Melted 1 | . . . . . . . . . . . . . . . . . . . . 1 . . . . . . . . . . . . Intel | -11 -10 -10 -9 -9 -9 -8 -8 -8 -8 -8 -7 -7 -6 -6 -6 -6 -5 -5 -5 -5 -5 -5 -5 -5 -4 -4 -4 -3 -3 -3 -2 -2 ------- Run | Yrd Mat Min Mat Min Exi Min Mat Gar Mat Gar Fac Gar Fac Gar Fac Gar Fac Was Fac Gar Fac Upp Upp War Pro Fac Gar Res Tes Gar Res Qua Active Infowar (turns) 9659 | . . . . 106 . . 19 . 2356 34 . . 382 . 528 . 203 . 314 106 831 607 593 190 1121 1172 531 566 . . . . Sensors 669 | . . . . 106 . . 19 . . . . . . . . . . . . . . . . . . 544 . . . . . . Terrain 6094 | . . . . . . . . . . . . . 382 . 528 . 203 . 314 106 831 607 593 190 1121 653 . 566 . . . . Machine Analysis 2390 | . . . . . . . . . 2356 34 . . . . . . . . . . . . . . . . . . . . . . Triangulation 287 | . . . . . . . . . . . . . . . . . . . . . . . . . . 287 . . . . . . Cloaking 228 | . . . . . . . . . . . . . . . . . . . . . . . . . . 228 . . . . . . Jamming 3685 | . . . . . . . . . . . . . . . . . . . . . . 81 593 190 1121 1169 531 . . . . . Robot Analysis Total 3 | . 1 . 2 . . . . . . . . . . . . . . . . . . . . . . . . . . . . . Derelict Logs Recovered 4 | . . 1 . 1 . . . . . . . . . . . . . . . . . . 1 . 1 . . . . . . . Drone Launches 6 | . . . . . . . . . . . . . 1 . 4 . . . . . . . . . . . . . 1 . . . Drone Recoveries 4 | . . . . . . . . . . . . . 1 . 2 . . . . . . . . . . . . . 1 . . . Exploration | -11 -10 -10 -9 -9 -9 -8 -8 -8 -8 -8 -7 -7 -6 -6 -6 -6 -5 -5 -5 -5 -5 -5 -5 -5 -4 -4 -4 -3 -3 -3 -2 -2 ------------- Run | Yrd Mat Min Mat Min Exi Min Mat Gar Mat Gar Fac Gar Fac Gar Fac Gar Fac Was Fac Gar Fac Upp Upp War Pro Fac Gar Res Tes Gar Res Qua Turns Passed 38846 | 77 1031 1969 3195 675 1011 512 100 1364 3362 1687 1284 1507 1181 1792 1529 629 582 1391 314 2174 990 730 593 190 1121 1182 2263 782 1370 1025 494 740 Spaces Moved 13775 | 24 343 593 1072 254 418 198 34 395 1180 459 380 516 275 551 541 190 83 364 103 780 322 274 230 77 364 445 672 478 831 719 322 288 Core 131 | . . . . . . . . . . . . . . . . . 18 . . . . . . . . . 36 8 . . 35 34 Treads 9844 | . 269 593 1072 254 418 198 34 395 1180 459 380 516 275 551 74 . . 364 103 780 322 274 230 77 364 218 435 . 9 . . . Legs 2194 | 24 74 . . . . . . . . . . . . . . 18 . . . . . . . . . . 146 469 203 719 287 254 Wheels 1495 | . . . . . . . . . . . . . . . 467 172 65 . . . . . . . . 227 55 . 509 . . . Hover . | . . . . . . . . . . . . . . . . . . . . . . . . . . . . . . . . . Flight 111 | . . . . . . . . . . . . . . . . . . . . . . . . . . . . 1 110 . . . Fastest Speed 37 | 120 120 320 240 240 240 240 240 240 240 241 250 247 247 245 123 245 230 160 160 160 160 245 250 250 250 160 50 45 37 100 50 50 Average Speed 231 | 120 276 320 240 240 240 240 240 303 241 314 259 249 264 271 208 258 620 285 239 239 239 248 250 250 250 188 271 124 114 108 105 189 Slowest Speed 1950 | 120 320 320 240 240 240 240 240 320 320 330 330 250 326 326 720 275 1950 560 240 240 245 250 250 250 250 250 1950 260 260 110 190 330 Overloaded Moves . | . . . . . . . . . . . . . . . . . . . . . . . . . . . . . . . . . Propulsion Burnouts . | . . . . . . . . . . . . . . . . . . . . . . . . . . . . . . . . . Robots Hopped . | . . . . . . . . . . . . . . . . . . . . . . . . . . . . . . . . . Potential Cave-ins 8 | . . . . . . . . . . . . . 2 . . . . . . . . . . . . 4 . 2 . . . . Cave-ins Triggered 1 | . . . . . . . . . . . . . . . . . . . . . . . . . . . . . . . 1 . Exploration Rate (%) 45 | 3 71 95 72 53 68 56 6 43 81 68 13 69 12 70 21 31 5 89 5 96 14 53 43 15 55 17 73 27 77 66 13 30 Regions Visited 32 Branch Regions 10 Pre-discovered Areas 5 | . 1 . 2 . 1 . . . . . . . . . . . . . . . . . . . 1 . . . . . . . Known Exits Taken 15 | . 1 1 1 . 1 1 1 . 1 . 1 . 1 . 1 . . . 1 . . . . . . 1 . 1 1 . 1 . Unknown Exits Taken 7 | 1 . . . 1 . . . . . . . . . . . . . . . . 1 1 1 1 1 . . . . . . . Scrap Searched 5 | . . 1 . 1 . . . . . . . . . . . . . . . . . 2 1 . . . . . . . . . Spaces Dug 224 | . . . . . . . . 3 23 5 4 19 23 8 27 . 7 . 14 . 8 . . . 25 17 . 14 17 2 6 2 Terrain Destroyed 1011 | . . 25 50 . . . . 17 58 28 47 55 48 22 99 2 41 14 14 101 100 30 . . 78 53 21 65 29 2 7 5 Melee 64 | . . . . . . . . 3 23 5 3 8 . 4 . . . . . . . . . . . . . . 9 2 6 1 Projectile 279 | . . . 1 . . . . . 17 7 4 4 47 . 44 2 13 14 14 5 22 8 . . . 35 5 18 14 . 1 4 AOE 668 | . . 25 49 . . . . 14 18 16 40 43 1 18 55 . 28 . . 96 78 22 . . 78 18 16 47 6 . . . Terrain Rammed . | . . . . . . . . . . . . . . . . . . . . . . . . . . . . . . . . . Walls Destroyed . | . . . . . . . . . . . . . . . . . . . . . . . . . . . . . . . . . Machines Disabled . | . . . . . . . . . . . . . . . . . . . . . . . . . . . . . . . . . Actions | -11 -10 -10 -9 -9 -9 -8 -8 -8 -8 -8 -7 -7 -6 -6 -6 -6 -5 -5 -5 -5 -5 -5 -5 -5 -4 -4 -4 -3 -3 -3 -2 -2 --------- Run | Yrd Mat Min Mat Min Exi Min Mat Gar Mat Gar Fac Gar Fac Gar Fac Gar Fac Was Fac Gar Fac Upp Upp War Pro Fac Gar Res Tes Gar Res Qua Total 18464 | 52 388 636 1533 305 426 227 51 482 1520 607 636 638 644 712 761 278 134 601 156 988 467 304 249 76 559 656 947 605 1115 893 409 409 Wait 1846 | 16 1 19 263 36 . 24 13 16 188 25 199 18 274 18 16 5 1 97 21 56 62 1 7 . 161 43 40 11 113 52 13 37 Move 13750 | 23 342 592 1071 253 417 197 34 394 1180 458 380 515 275 550 541 189 83 363 103 779 321 273 229 76 363 445 671 477 830 717 321 288 Hop . | . . . . . . . . . . . . . . . . . . . . . . . . . . . . . . . . . Pick Up 270 | . 14 3 33 . 3 . 1 7 13 16 5 5 8 16 14 4 3 5 2 16 . 4 6 . 5 19 35 12 11 4 5 1 Fast Attach 209 | . 1 . 3 1 . . . 2 11 2 3 3 2 4 15 7 3 9 4 6 4 . 2 . 2 14 33 8 33 13 8 16 Attach 186 | . 2 2 8 3 . . 2 2 3 7 2 7 3 11 17 11 8 3 2 7 6 6 . . 4 9 26 11 7 7 3 7 Detach 102 | . . . . 1 . . . 2 2 4 . 4 . 5 5 9 7 2 2 4 3 1 . . 2 4 17 8 4 7 4 5 Swap 277 | 1 1 2 18 4 . 2 1 8 19 12 16 16 13 19 34 6 1 7 3 5 15 . . . 3 30 14 11 6 3 6 1 Drop 240 | . 3 . 22 . 2 . . 8 24 16 7 3 5 11 13 2 4 11 5 17 1 . 4 . 2 20 17 9 15 12 7 . Fire 1295 | 12 23 15 102 6 . 4 . 38 44 39 20 52 62 68 104 29 24 104 14 59 54 19 . . 17 71 90 48 53 55 27 42 Melee 156 | . . . . . 4 . . 5 30 13 3 11 . 6 . . . . . . . . . . . . . . 41 23 11 9 Ram 5 | . . . . . . . . . . . . . . . 1 . . . . . . . . . . . . . 1 . 3 . Kick 15 | . . . . . . . . . . . . . . . . . . . . . . . . . . . . 10 1 . 1 3 Crush 31 | . 1 3 13 1 . . . . 6 . 1 . 2 . 1 . . . . . 1 . 1 . . 1 . . . . . . Escape Stasis 55 | . . . . . . . . . . 15 . 4 . 4 . 16 . . . 12 . . . . . . 4 . . . . . Rewire 27 | . . . . . . . . . . . . . . . . . . . . 27 . . . . . . . . . . . . Trap . | . . . . . . . . . . . . . . . . . . . . . . . . . . . . . . . . . Miscellaneous . | . . . . . . . . . . . . . . . . . . . . . . . . . . . . . . . . . Route ------- -11/Scrapyard -10/Materials (discovered 6 exits: *Mat x3 / *Min x2 / Sub) -10/Mines (discovered 2 exits: *Mat x2) -9/Materials (discovered 4 exits: *Mat x3 / *Min) -9/Mines (discovered 3 exits: Mat x2 / *Exi) -9/Exiles (discovered 2 exits: *Min x2) -8/Mines (discovered 2 exits: *Mat x2) -8/Materials -8/Garrison -8/Materials (discovered 3 exits: *Fac x2 / Gar) -8/Garrison (discovered 3 exits: *Fac x3) -7/Factory (discovered 3 exits: Sto x2 / Gar) -7/Garrison (discovered 3 exits: *Fac x3) -6/Factory -6/Garrison (discovered 3 exits: *Fac x3) -6/Factory -6/Garrison -5/Factory -5/Waste -5/Factory (discovered 2 exits: [*Upp] / Gar) -5/Garrison (discovered 3 exits: *Fac x3) -5/Factory (discovered 2 exits: *Fac / [*Upp]) -5/Upper Caves -5/Upper Caves -5/Warlord -4/Proximity Caves -4/Factory (discovered 4 exits: *Res / Ext x2 / Gar) -4/Garrison (discovered 3 exits: *Res x3) -3/Research (discovered 2 exits: *Tes x2) -3/Testing (discovered 2 exits: *Res / Gar) -3/Garrison (discovered 3 exits: *Res x3) -2/Research (discovered 2 exits: *Qua x2) -2/Quarantine (discovered 1 exit: *Acc) History --------- Turn | Location | Event 13 | -11/Scrapyard | Discovered new exit (range 2) 78 | -11/Scrapyard | Entered Materials 79 | -10/Materials | Met a group of wandering Federalists 207 | -10/Materials | Lost 6 allies 310 | -10/Materials | Build established: Mutant 354 | -10/Materials | Discovered new exit (range 14) 567 | -10/Materials | Discovered new exit (range 14) 715 | -10/Materials | Discovered new exit (range 11) 826 | -10/Materials | Learned Storage non-interactive machine intel 872 | -10/Materials | Identified exit to Mines 909 | -10/Materials | Learned 2 Mines zone layouts 935 | -10/Materials | Learned location of 2 exits from Subcaves 943 | -10/Materials | Central database locked down 952 | -10/Materials | Identified exit to Materials 960 | -10/Materials | Learned location of 1 exit from Recycling 965 | -10/Materials | Identified exit to Subcaves 978 | -10/Materials | Learned Storage garrison access intel 1109 | -10/Materials | Entered Mines 1189 | -10/Mines | Assisted by bots powering up and referring to "LRC-V3" 1500 | -10/Mines | Received a Rocket Launcher from a helpful Derelict 1821 | -10/Mines | Learned location of 1 exit from Materials 1910 | -10/Mines | Received a Mining Laser from a helpful Derelict 3078 | -10/Mines | Entered Materials 3078 | -9/Materials | Evolved 2 slots: Propulsion x1, Utility x1 3079 | -9/Materials | Identified exit to Mines 3080 | -9/Materials | Identified exit to Materials 3918 | -9/Materials | Build established: Scavenger-Mutant 4413 | -9/Materials | Build established: Mutant 4437 | -9/Materials | Learned Storage garrison access intel 4496 | -9/Materials | Learned location of Mines (-9) 4606 | -9/Materials | Loaded intel: 61 machine locations 4623 | -9/Materials | Learned location of 1 exit from Storage 4652 | -9/Materials | Learned location of 1 exit from Recycling 6095 | -9/Materials | Core integrity fell below 50% 6273 | -9/Materials | Entered Mines 6534 | -9/Mines | Assembled infested the area 6808 | -9/Mines | Deemed a non-threat by the Exiles lab entrance 6808 | -9/Mines | Discovered new exit (range 5) 6948 | -9/Mines | Entered Exiles 6949 | -9/Exiles | Identified exit to Mines 7004 | -9/Exiles | Met 8R-AWN 7047 | -9/Exiles | Met EX-HEX 7339 | -9/Exiles | Met EX-BIN 7415 | -9/Exiles | Met EX-DEC 7476 | -9/Exiles | Learned location of Zion (-7) 7651 | -9/Exiles | Aligned with FarCom system 7654 | -9/Exiles | Given EX-Vault access code 7709 | -9/Exiles | Opened EX-Vault 7726 | -9/Exiles | Found Firepult 7730 | -9/Exiles | Found Superbattery 7779 | -9/Exiles | Warned to stay clear of 0b10 Research branches 7959 | -9/Exiles | Stole two prototypes: Superbattery, Firepult 7959 | -9/Exiles | Entered Mines 8471 | -8/Mines | Entered Materials 8471 | -8/Materials | Evolved 2 slots: Utility x1, Weapon x1 8571 | -8/Materials | Identified exit to Garrison 8571 | -8/Materials | Entered Garrison 8572 | -8/Garrison | Identified exit to Materials 8760 | -8/Garrison | Build established: Tank 9031 | -8/Garrison | Installed Relay Interface Framework 9093 | -8/Garrison | Triggered checkpoint 9230 | -8/Garrison | Triggered checkpoint 9249 | -8/Garrison | Triggered checkpoint 9287 | -8/Garrison | Destroyed 11 combat bots 9492 | -8/Garrison | Expanded RIF knowledge: Hotswap 9752 | -8/Garrison | Build established: Mutant 9935 | -8/Garrison | Entered Materials 10531 | -8/Materials | Met 7R-MNS 10597 | -8/Materials | Build established: Tank 10936 | -8/Materials | Repaired Corrupted Hacking Suite 11538 | -8/Materials | Repaired Rocket Launcher 11841 | -8/Materials | Discovered new exit (range 11) 11883 | -8/Materials | Build established: Mutant 12800 | -8/Materials | Discovered new exit (range 15) 13029 | -8/Materials | Build established: Tank 13297 | -8/Materials | Identified exit to Garrison 13297 | -8/Materials | Entered Garrison 13565 | -8/Garrison | Triggered checkpoint 13723 | -8/Garrison | Discovered new exit (range 13) 13781 | -8/Garrison | Triggered checkpoint 13850 | -8/Garrison | Expanded RIF knowledge: Zone Cloak 13909 | -8/Garrison | Garrison Relay disabled 13954 | -8/Garrison | Garrison Relay disabled 13995 | -8/Garrison | Triggered checkpoint 14112 | -8/Garrison | Triggered checkpoint 14332 | -8/Garrison | Discovered new exit (range 13) 14432 | -8/Garrison | Triggered checkpoint 14638 | -8/Garrison | Discovered new exit (range 15) 14984 | -8/Garrison | Entered Factory 14984 | -7/Factory | Evolved 2 slots: Propulsion x1, Utility x1 14985 | -7/Factory | Identified exit to Storage 14986 | -7/Factory | FarCom data flow suspended 15402 | -7/Factory | Build established: Bothacker-Tank 16165 | -7/Factory | Identified exit to Garrison 16250 | -7/Factory | Cargo convoy interrupted 16268 | -7/Factory | Entered Garrison 16532 | -7/Garrison | Triggered checkpoint 16534 | -7/Garrison | Triggered checkpoint 16576 | -7/Garrison | Destroyed 9 combat bots 16833 | -7/Garrison | Discovered new exit (range 10) 17046 | -7/Garrison | Triggered checkpoint 17089 | -7/Garrison | Garrison Relay disabled 17118 | -7/Garrison | Garrison Relay disabled 17203 | -7/Garrison | Garrison Relay disabled 17305 | -7/Garrison | Discovered new exit (range 8) 17545 | -7/Garrison | Expanded RIF knowledge: Code Merge 17598 | -7/Garrison | Discovered new exit (range 8) 17624 | -7/Garrison | Triggered checkpoint 17690 | -7/Garrison | Garrison Relay disabled 17775 | -7/Garrison | Entered Factory 17775 | -6/Factory | Evolved 2 slots: Power x1, Utility x1 18956 | -6/Factory | Identified exit to Garrison 18956 | -6/Factory | Entered Garrison 19122 | -6/Garrison | Triggered checkpoint 19196 | -6/Garrison | Triggered checkpoint 19197 | -6/Garrison | Spotted B-75 Beast 19208 | -6/Garrison | Destroyed B-75 Beast 19255 | -6/Garrison | Triggered checkpoint 19255 | -6/Garrison | Triggered checkpoint 19297 | -6/Garrison | Triggered checkpoint 19325 | -6/Garrison | Destroyed 7 combat bots 19412 | -6/Garrison | Lost 3 parts (2u1w) 19507 | -6/Garrison | Discovered new exit (range 10) 19556 | -6/Garrison | Triggered checkpoint 19585 | -6/Garrison | Expanded RIF knowledge: Patrol Navigation 19622 | -6/Garrison | Garrison Relay disabled 19854 | -6/Garrison | Discovered new exit (range 10) 19996 | -6/Garrison | Triggered checkpoint 20125 | -6/Garrison | Garrison Relay disabled 20314 | -6/Garrison | Triggered checkpoint 20351 | -6/Garrison | Discovered new exit (range 13) 20421 | -6/Garrison | Build established: Bothacker-Gunner 20661 | -6/Garrison | Found Relay Coupler [Proto] 20665 | -6/Garrison | Found Relay Coupler [Proto] 20669 | -6/Garrison | Found Relay Coupler [Proto] 20676 | -6/Garrison | Found Relay Coupler [Proto] 20748 | -6/Garrison | Entered Factory 20972 | -6/Factory | Lost 3 parts (2n1w) 21294 | -6/Factory | Build established: Botlord-Gunner 21475 | -6/Factory | Garrison activated, responded to threat 21644 | -6/Factory | Lost 4 parts (1p1n1u1w) 21946 | -6/Factory | Build established: Botlord-Tank 21949 | -6/Factory | Cargo convoy interrupted 21959 | -6/Factory | Core integrity fell below 50% 22001 | -6/Factory | Destroyed 9 combat bots 22002 | -6/Factory | Lost 4 parts (1p2n1w) 22225 | -6/Factory | Garrison activated, responded to threat 22265 | -6/Factory | Lost 3 parts (2p1n) 22277 | -6/Factory | Identified exit to Garrison 22277 | -6/Factory | Entered Garrison 22361 | -6/Garrison | Triggered checkpoint 22406 | -6/Garrison | Garrison Relay disabled 22571 | -6/Garrison | Triggered checkpoint 22675 | -6/Garrison | Destroyed 10 combat bots 22782 | -6/Garrison | Expanded RIF knowledge: Watcher Feeds 22884 | -6/Garrison | Discovered new exit (range 10) 22906 | -6/Garrison | Entered Factory 22906 | -5/Factory | Evolved 2 slots: Utility x2 23145 | -5/Factory | Lost 3 parts (1p1u1w) 23488 | -5/Factory | Sucked down chute 23488 | -5/Factory | Entered Waste 23518 | -5/Waste | Lost 4 parts (3n1w) 23529 | -5/Waste | Spotted C-40 Crusher 23535 | -5/Waste | Spotted C-40 Crusher 23578 | -5/Waste | Spotted C-40 Crusher 23594 | -5/Waste | Spotted C-40 Crusher 23611 | -5/Waste | Spotted C-40 Crusher 23632 | -5/Waste | Spotted C-40 Crusher 23766 | -5/Waste | Destroyed C-40 Crusher 23844 | -5/Waste | Destroyed C-40 Crusher 23852 | -5/Waste | Found Damper Plating 23865 | -5/Waste | Found Damper Plating 23876 | -5/Waste | Destroyed C-40 Crusher 23905 | -5/Waste | Destroyed C-40 Crusher 23982 | -5/Waste | Found Damper Plating 24060 | -5/Waste | Destroyed C-40 Crusher 24133 | -5/Waste | Discovered new exit (range 16) 24159 | -5/Waste | Destroyed C-40 Crusher 24422 | -5/Waste | Warlord forces began an assault 24879 | -5/Waste | Entered Factory 24879 | -5/Factory | Accompanied by 16 allies 25164 | -5/Factory | Discovered new exit (range 6) 25187 | -5/Factory | Identified exit to Garrison 25193 | -5/Factory | Entered Garrison 25193 | -5/Garrison | Accompanied by 8 allies 25226 | -5/Garrison | Phase Generator disabled 25351 | -5/Garrison | Triggered checkpoint 25352 | -5/Garrison | Garrison Relay disabled 25360 | -5/Garrison | Lost 3 allies 25383 | -5/Garrison | Garrison Relay disabled 25558 | -5/Garrison | Triggered checkpoint 25675 | -5/Garrison | Triggered checkpoint 25745 | -5/Garrison | Garrison Relay disabled 25788 | -5/Garrison | Discovered new exit (range 8) 25803 | -5/Garrison | Spotted B-75 Beast 25838 | -5/Garrison | Destroyed B-75 Beast 25888 | -5/Garrison | Lost 5 allies 25935 | -5/Garrison | Found Relay Coupler [Proto] 25939 | -5/Garrison | Found Relay Coupler [Proto] 25942 | -5/Garrison | Found Relay Coupler [Proto] 25946 | -5/Garrison | Found Relay Coupler [Proto] 26185 | -5/Garrison | Triggered checkpoint 26376 | -5/Garrison | Discovered new exit (range 10) 26455 | -5/Garrison | Spotted B-90 Cyclops 26686 | -5/Garrison | Discovered new exit (range 15) 26732 | -5/Garrison | Expanded RIF knowledge: Alert ID Control 27120 | -5/Garrison | Destroyed B-90 Cyclops 27188 | -5/Garrison | Rewired B-90 Cyclops 27306 | -5/Garrison | Found Quantum Capacitor 27367 | -5/Garrison | Entered Factory 27367 | -5/Factory | Accompanied by 1 ally 27610 | -5/Factory | Discovered new exit (range 7) 27667 | -5/Factory | First assault squad dispatched 28195 | -5/Factory | Garrison activated, responded to threat 28245 | -5/Factory | Discovered new exit (range 8) 28268 | -5/Factory | Lost 4 parts (1u3w) 28357 | -5/Factory | Entered Upper Caves 28357 | -5/Upper Caves | Accompanied by 1 ally 28636 | -5/Upper Caves | Build established: Botlord-Mutant 29005 | -5/Upper Caves | Attracted the attention of an 0b10 checkpoint 29029 | -5/Upper Caves | Discovered new exit (range 6) 29087 | -5/Upper Caves | Entered another Upper Caves area 29087 | -5/Upper Caves | Accompanied by 1 ally 29305 | -5/Upper Caves | Build established: Botlord-Tank 29487 | -5/Upper Caves | Learned 4 Factory zone layouts 29595 | -5/Upper Caves | Spotted 8C-7UL(f) 29595 | -5/Upper Caves | Spotted 8V-MWG(f) 29597 | -5/Upper Caves | Encountered a Master Thief 29597 | -5/Upper Caves | Encountered a Master Thief 29597 | -5/Upper Caves | Spotted KF-JC8(f) 29597 | -5/Upper Caves | Spotted JJ-4HE(f) 29598 | -5/Upper Caves | Encountered a Master Thief 29598 | -5/Upper Caves | Encountered a Master Thief 29598 | -5/Upper Caves | Spotted UY-FXG(f) 29598 | -5/Upper Caves | Relay Coupler [Proto] stolen by Master Thief 29599 | -5/Upper Caves | Encountered a Master Thief 29601 | -5/Upper Caves | Relay Coupler [Proto] stolen by Master Thief 29602 | -5/Upper Caves | Relay Coupler [Proto] stolen by Master Thief 29604 | -5/Upper Caves | Relay Coupler [Proto] stolen by Master Thief 29604 | -5/Upper Caves | Relay Coupler [Proto] stolen by Master Thief 29635 | -5/Upper Caves | Discovered new exit (range 13) 29680 | -5/Upper Caves | Entered Warlord 29680 | -5/Warlord | Accompanied by 1 ally 29775 | -5/Warlord | System corruption cleaned by Quarantine Array 29784 | -5/Warlord | RIF detected upon attempting to enter Warlord's base 29784 | -5/Warlord | Attacked by Warlord forces 29845 | -5/Warlord | Discovered new exit (range 12) 29870 | -5/Warlord | Entered Proximity Caves 30266 | -4/Proximity Caves | Spotted B-86 Titan 30533 | -4/Proximity Caves | Destroyed B-86 Titan 30924 | -4/Proximity Caves | Discovered new exit (range 9) 30991 | -4/Proximity Caves | Entered Factory 30991 | -4/Factory | Evolved 2 slots: Propulsion x2 30992 | -4/Factory | Identified exit to Extension 31013 | -4/Factory | Build established: Bothacker-Tank 31303 | -4/Factory | Allied Derelicts emerged from ambush trap array 31651 | -4/Factory | Lost 3 allies 31744 | -4/Factory | Discovered new exit (range 26) 31762 | -4/Factory | Discovered exit to Extension (range 16) 32140 | -4/Factory | Lost 7 parts (2p2n2u1w) 32173 | -4/Factory | System corruption reached 10% 32173 | -4/Factory | Identified exit to Garrison 32173 | -4/Factory | Entered Garrison 32414 | -4/Garrison | Garrison Relay disabled 32679 | -4/Garrison | P-70 Sage assimilated allied Veteran 7a 32719 | -4/Garrison | System corruption reached 30% 32728 | -4/Garrison | Spotted B-86 Titan 32737 | -4/Garrison | Triggered checkpoint 32776 | -4/Garrison | Core integrity fell below 50% 32790 | -4/Garrison | Lost 17 parts (2p6n7u2w) 32863 | -4/Garrison | Destroyed B-86 Titan 33003 | -4/Garrison | Lost 4 parts (1p1n2w) 33109 | -4/Garrison | Triggered checkpoint 33173 | -4/Garrison | Lost 4 parts (1n1u2w) 33397 | -4/Garrison | Build established: Botlord-Gunner 33464 | -4/Garrison | Expanded RIF knowledge: Crosswire 33554 | -4/Garrison | Discovered new exit (range 10) 33857 | -4/Garrison | Discovered new exit (range 14) 34149 | -4/Garrison | Triggered checkpoint 34177 | -4/Garrison | Garrison Relay disabled 34229 | -4/Garrison | Found embedded Infiltrators 34319 | -4/Garrison | Expanded RIF knowledge: Code Merge 34405 | -4/Garrison | Discovered new exit (range 13) 34434 | -4/Garrison | Identified exit to Research 34436 | -4/Garrison | Entered Research 34436 | -3/Research | Accompanied by 3 allies 34436 | -3/Research | Evolved 2 slots: Utility x2 34818 | -3/Research | Found Prototype Launcher 34949 | -3/Research | P-80 Master assimilated allied V9-KW3(x) 35009 | -3/Research | Identified Adv. Micro-nuke Launcher 35060 | -3/Research | Identified exit to Testing 35218 | -3/Research | Entered Testing 35245 | -3/Testing | Lost 12 parts (6n5u1w) 35263 | -3/Testing | Found Prototype Device 35263 | -3/Testing | Identified 2N-1CE's Frost Array 35445 | -3/Testing | Build established: Mutant 35472 | -3/Testing | Found Prototype Energy Gun 35472 | -3/Testing | Identified Warp Gun 35831 | -3/Testing | Found Hvy. Regenerative Plating 35934 | -3/Testing | Core integrity fell below 50% 35970 | -3/Testing | Lost 4 parts (1p2n1w) 35977 | -3/Testing | Destroyed 7 combat bots 36121 | -3/Testing | Lost 6 parts (1p3n1u1w) 36201 | -3/Testing | Found SHELL Armor 36202 | -3/Testing | System corruption reached 10% 36260 | -3/Testing | Build established: Scavenger-Mutant 36335 | -3/Testing | Lost 3 parts (2n1u) 36525 | -3/Testing | System corruption reached 30% 36529 | -3/Testing | Garrison activated, responded to threat 36539 | -3/Testing | Found Prototype Leg 36539 | -3/Testing | Identified Myomer Exoskeleton 36557 | -3/Testing | Discovered new exit (range 24) 36584 | -3/Testing | Identified exit to Garrison 36588 | -3/Testing | Entered Garrison 36598 | -3/Garrison | Rewired B-90 Cyclops 36600 | -3/Garrison | Lost 4 parts (3n1u) 36722 | -3/Garrison | Triggered checkpoint 36787 | -3/Garrison | Garrison Relay disabled 36820 | -3/Garrison | Garrison Relay disabled 36940 | -3/Garrison | Spotted B-86 Titan 36944 | -3/Garrison | Triggered checkpoint 36958 | -3/Garrison | Q-Series assembled to engage unique threat in Research 36963 | -3/Garrison | Destroyed B-86 Titan 36963 | -3/Garrison | Triggered checkpoint 37003 | -3/Garrison | Lost 4 allies 37047 | -3/Garrison | Lost 3 allies 37133 | -3/Garrison | Lost 3 allies 37258 | -3/Garrison | Discovered new exit (range 12) 37269 | -3/Garrison | Identified exit to Research 37363 | -3/Garrison | Q-Series assembled to engage unique threat in Research 37366 | -3/Garrison | Found embedded Infiltrators 37454 | -3/Garrison | Discovered exit to Research (range 8) 37465 | -3/Garrison | Expanded RIF knowledge: Structural Interface 37550 | -3/Garrison | Spotted B-86 Titan 37550 | -3/Garrison | Spotted B-86 Titan 37583 | -3/Garrison | Core integrity fell below 20% 37602 | -3/Garrison | Discovered exit to Research (range 10) 37613 | -3/Garrison | Entered Research 37613 | -2/Research | Evolved 2 slots: Power x1, Utility x1 37859 | -2/Research | Identified exit to Quarantine 37972 | -2/Research | Crushed by falling debris 38004 | -2/Research | System corruption reached 10% 38107 | -2/Research | Entered Quarantine 38108 | -2/Quarantine | Core integrity fell below 50% 38116 | -2/Quarantine | Lost 11 parts (3p3n2u3w) 38168 | -2/Quarantine | Found Alien Artifact 38168 | -2/Quarantine | Identified Phase Armor 38217 | -2/Quarantine | Found Alien Artifact 38285 | -2/Quarantine | Build established: Mutant 38304 | -2/Quarantine | Found Alien Impact Weapon 38304 | -2/Quarantine | Identified Core Stripper 38330 | -2/Quarantine | Discovered new exit (range 6) 38341 | -2/Quarantine | Identified exit to Access 38432 | -2/Quarantine | System corruption reached 30% 38724 | -2/Quarantine | Core integrity fell below 20% 38799 | -2/Quarantine | Build established: Hacker-Mutant 38847 | -2/Quarantine | Destroyed by G-73 Enforcer with Phase Gun Last Messages --------------- 38814_ R-10 Processor collects Unknown Wheel. 38817_ P>>EM%/EE A0KGXRKXNQBUTFSHVXBJ 38817_ The unstable cave ceiling collapses. 38817_ R-10 Processor collects Field Recycling Unit. 38829_ K-01 Serf destroyed. 38830_ Adv. Heat Sink destroyed. 38834_ ALERT: Potential suspicious activity detected, Programmers report to Quarantine Zone 6J. 38836_ Core Stripper destroyed. 38841_ Melted Myomer Leg. 38841_ G-73 Enforcer critical meltdown. 38841_ Lgt. Quantum Reactor melted. 38841_ Unknown Energy Gun melted. 38841_ Myomer Leg melted. 38843_ Phase Gun destroyed. 38844_ Power failure, Lgt. Quantum Reactor shutdown. 38844_ G-73 Enforcer destroyed. 38845_ Myomer Leg broken. 38845_ Overheating: Short circuit. 38846_ System corrupted: Firepult failed to cycle. Map ----- +----------------------------------------------------+ | ????????????? #?#"" # #??????????? | | ????????????T" #?#"" """ / #??????????? | | ???????????? #?# """ # #??????????? | | ????????????"" #?# """ # #??????????? | | ???????????""" #?#= +? #??????????? | | ??????????"""" #?##########?+#+#??????????? | | ???????????""" #??????????????????????????? | | ???????????? #??????????????????????????? | | ?????????????? #??????????????????????????? | | ??????????????? [! #??????????????????????????? | | ???????????????? =!= #??????????????????????????? | | ?????????????????#=*=!#??????????????????????????? | | ?????????????###?#!!==#??????????????????????????? | | ?????????????#####%=!%#??????????????????????????? | | ?????????????##%=[[[= #??????????????????????????? | | ??????????????#=! % % #??????????????????????????? | | ??????????????# [#??????????????????????????? | | ??????????????#### !#??????????????????????????? | | ?????????????????# #??????????????????????????? | | ?????????????????#[k [#??????????????????????????? | | ?????????????????# ! ########???????????????????? | | ?????????????????# ####????????????????? | | ?????????????????# % #????????????????? | | ?????????????????# % #????????????????? | | ?????????????????# % #????????????????? | | ?????????????????########@ g ####????????????????? | | ????????????????????????# = #???????????????????? | | ???######################%% g##??????????????????? | | ???# !=! ##############??????? | | ???# ^ [ # #??????? | | ???# % # T #??????? | | #### # #??????? | | # ###+################## #??????? | | # # # ## """ """ #??????? | | # # # ## """ """ #??????? | | # # """ " " # ## """ """ #??????? | | # # " " " " + """"" ## #??????? | | # # """ """ # ""*"" ## """ """ #??????? | | + # " # """ ## """ """ #??????? | | # # """"""" # ## """ #??????? | | # # # ## %% #??????? | | #### ##############+###+########+############## | | % % = | | | | | | | | ####+############# #########+### ############# | | # #???#????# # # # | | # #????????# " # # "" # " | | ## #????????# " " # + """ # " | +----------------------------------------------------+ Best States ------------- Heat Dissipation 146 Coolant Potential 100 Energy Generation 65 Energy Capacity 550 Matter Stores 300 Matter Capacity 300 Sight Range 16 Robot Scan Range 16 Terrain Scan Range 20 Terrain Scan Density 210 Jamming Range 14 Cloak Strength 3 Corruption Containment 8 Armor Coverage 3200 Resistance: EM 90 Point Defense Rating 160 Evasion (%) 82 Targeting Accuracy 20 Core Analysis 6 Recoil Reduction 6 Energy Filtering 50 Kinecelleration 40 Offensive Hacking 14 Defensive Hacking 10 Relay Coupler Types 5 Relay Coupler Value 176 Item Schematics ----------------- Quantum Capacitor | -4/Factory | Scanalyzed Exp. Shield Generator | -3/Testing | Archive Lgt. Antimatter Cannon | -3/Testing | Archive Robot Schematics ------------------ X-82 Rainmaker | -3/Testing | Archive Fabricated ------------ Nothing Repaired ---------- Hacking Suite | 80% | -8/Materials | Corrupted Rocket Launcher | 35% | -8/Materials Alien Tech Used ----------------- Phase Armor Core Stripper Achievements -------------- None Challenges ------------ None Game ------ Seed ShadeMediumRifle Manual? 0 Play Time 05:26:46 Cumulative 367.1 hours Start 2025.05.26 @ 18:30:56 End 2025.06.02 @ 21:30:04 Sessions 5 Manual Loads 0 Difficulty Rogue Special Mode None Game No. 414 Rogue 414 Adventurer 0 Explorer 0 Win Type - Total 11 Types 8/0/2/1/0/0/0/0/0/0 Lore% 78 Gallery% 81 Achievement% 76 Wizard Run 0 Options --------- Layout 0 ASCII 0 Keyboard 0 Movement Numpad Keybinds 0 Fullscreen 2 Font 18/X11 Map View 76x50 Zoom Use 0% Tactical HUD 1 Map Filters NONE Filters NONE Steam 1 RUN: 32095a9d-bfb5-4800-b3ac-98bcbe3a37b1